{"text_format":"3","workbook":"xlsx","n_sheets":4,"sheets":["Urmărire punctaj","Performanța dvs.","Setări","Calcule"],"not_rendered":{"defined_names":3,"comments":1},"read":"whole","date_system":"1900"}

{"sheet":"Urmărire punctaj","index":0,"n_rows":14,"n_cols":6,"rows_kept":14}
[null,"Introduceți aici punctajele"]
[]
[null,null,"Curs","Tip","Descriere","Punctaj"]
[null,null,"Franceză modernă","Teme pentru acasă","Istoria celui de-al Doilea Război Mondial",{"v":0.8,"d":"80%"}]
[null,null,"Programare avansată în Java","Parțial",null,{"v":0.75,"d":"75%"}]
[null,null,"Spaniolă","Teme pentru acasă",null,{"v":0.5,"d":"50%"}]
[null,null,"Fizică teoretică","Teme pentru acasă",null,{"v":0.95,"d":"95%"}]
[null,null,"Franceză modernă","Teme pentru acasă","Istoria primului Război Mondial",{"v":0.9,"d":"90%"}]
[null,null,"Franceză modernă","Teme pentru acasă","Paginile 30 - 41",{"v":0.8,"d":"80%"}]
[null,null,"Compunere","Eseu","Declarație de intenții",{"v":0.95,"d":"95%"}]
[null,null,"Matematică 1","Teme pentru acasă","Paginile 21 și 26",{"v":0.8,"d":"80%"}]
[null,null,"Matematică 2","Teme pentru acasă","Paginile 15 și 18",{"v":0.85,"d":"85%"}]
[null,null,"Matematică 1","Teme pentru acasă","Paginile 34 - 36",{"v":0.8,"d":"80%"}]
[null,null,"Matematică 2","Test grilă",null,{"v":0.95,"d":"95%"}]

{"sheet":"Performanța dvs.","index":1,"n_rows":31,"n_cols":8,"rows_kept":31}
[null,"Performanța dvs."]
[]
[null,null,"Total"]
[null,null,{"$f":"\"Ore: \"&SUM(tblCursuri[Credite])","v":"Ore: 24"},{"$f":"AVERAGE(D7:D31)","v":{"v":0.8104761904761906,"d":"81%"}},{"$f":"AVERAGE(E7:E31)","v":{"v":2.7142857142857144,"d":"2.71"}},{"$f":"SUM(F7:F31)","v":{"v":2.625,"d":"2.63"}},{"$f":"IFERROR(HLOOKUP(D4,lstMapareMedii,2),\"\")","v":"B-"}]
[]
[null,null,"Cursuri","%","Medie","MediePond","Literă","Performanță generală"]
[null,null,{"$f":"Calcule!C6","v":"Franceză modernă"},{"$f":"Calcule!AL6","v":{"v":0.8333333333333334,"d":"83%"}},{"$f":"Calcule!AM6","v":{"v":3,"d":"3.00"}},{"$f":"IFERROR(E7*Setări!D9/SUM(tblCursuri[Credite]),\"\")","v":{"v":0.375,"d":"0.38"}},{"$f":"Calcule!AN6","v":"B"}]
[null,null,{"$f":"Calcule!C7","v":"Fizică teoretică"},{"$f":"Calcule!AL7","v":{"v":0.95,"d":"95%"}},{"$f":"Calcule!AM7","v":{"v":4,"d":"4.00"}},{"$f":"IFERROR(E8*Setări!D10/SUM(tblCursuri[Credite]),\"\")","v":{"v":0.5,"d":"0.50"}},{"$f":"Calcule!AN7","v":"A"}]
[null,null,{"$f":"Calcule!C8","v":"Matematică 1"},{"$f":"Calcule!AL8","v":{"v":0.8000000000000002,"d":"80%"}},{"$f":"Calcule!AM8","v":2.67},{"$f":"IFERROR(E9*Setări!D11/SUM(tblCursuri[Credite]),\"\")","v":{"v":0.445,"d":"0.45"}},{"$f":"Calcule!AN8","v":"B-"}]
[null,null,{"$f":"Calcule!C9","v":"Matematică 2"},{"$f":"Calcule!AL9","v":{"v":0.89,"d":"89%"}},{"$f":"Calcule!AM9","v":3.33},{"$f":"IFERROR(E10*Setări!D12/SUM(tblCursuri[Credite]),\"\")","v":{"v":0.555,"d":"0.56"}},{"$f":"Calcule!AN9","v":"B+"}]
[null,null,{"$f":"Calcule!C10","v":"Programare avansată în Java"},{"$f":"Calcule!AL10","v":{"v":0.7500000000000001,"d":"75%"}},{"$f":"Calcule!AM10","v":{"v":2,"d":"2.00"}},{"$f":"IFERROR(E11*Setări!D13/SUM(tblCursuri[Credite]),\"\")","v":{"v":0.4166666666666667,"d":"0.42"}},{"$f":"Calcule!AN10","v":"C"}]
[null,null,{"$f":"Calcule!C11","v":"Spaniolă"},{"$f":"Calcule!AL11","v":{"v":0.5,"d":"50%"}},{"$f":"Calcule!AM11","v":{"v":0,"d":"0.00"}},{"$f":"IFERROR(E12*Setări!D14/SUM(tblCursuri[Credite]),\"\")","v":{"v":0,"d":"0.00"}},{"$f":"Calcule!AN11","v":"F"}]
[null,null,{"$f":"Calcule!C12","v":"Compunere"},{"$f":"Calcule!AL12","v":{"v":0.95,"d":"95%"}},{"$f":"Calcule!AM12","v":{"v":4,"d":"4.00"}},{"$f":"IFERROR(E13*Setări!D15/SUM(tblCursuri[Credite]),\"\")","v":{"v":0.3333333333333333,"d":"0.33"}},{"$f":"Calcule!AN12","v":"A"}]
[null,null,{"$f":"Calcule!C13","v":""},{"$f":"Calcule!AL13","v":""},{"$f":"Calcule!AM13","v":""},{"$f":"IFERROR(E14*Setări!D16/SUM(tblCursuri[Credite]),\"\")","v":""},{"$f":"Calcule!AN13","v":""}]
[null,null,{"$f":"Calcule!C14","v":""},{"$f":"Calcule!AL14","v":""},{"$f":"Calcule!AM14","v":""},{"$f":"IFERROR(E15*Setări!D17/SUM(tblCursuri[Credite]),\"\")","v":""},{"$f":"Calcule!AN14","v":""}]
[null,null,{"$f":"Calcule!C15","v":""},{"$f":"Calcule!AL15","v":""},{"$f":"Calcule!AM15","v":""},{"$f":"IFERROR(E16*Setări!D18/SUM(tblCursuri[Credite]),\"\")","v":""},{"$f":"Calcule!AN15","v":""}]
[null,null,{"$f":"Calcule!C16","v":""},{"$f":"Calcule!AL16","v":""},{"$f":"Calcule!AM16","v":""},{"$f":"IFERROR(E17*Setări!D19/SUM(tblCursuri[Credite]),\"\")","v":""},{"$f":"Calcule!AN16","v":""}]
[null,null,{"$f":"Calcule!C17","v":""},{"$f":"Calcule!AL17","v":""},{"$f":"Calcule!AM17","v":""},{"$f":"IFERROR(E18*Setări!D20/SUM(tblCursuri[Credite]),\"\")","v":""},{"$f":"Calcule!AN17","v":""}]
[null,null,{"$f":"Calcule!C18","v":""},{"$f":"Calcule!AL18","v":""},{"$f":"Calcule!AM18","v":""},{"$f":"IFERROR(E19*Setări!D21/SUM(tblCursuri[Credite]),\"\")","v":""},{"$f":"Calcule!AN18","v":""}]
[null,null,{"$f":"Calcule!C19","v":""},{"$f":"Calcule!AL19","v":""},{"$f":"Calcule!AM19","v":""},{"$f":"IFERROR(E20*Setări!D22/SUM(tblCursuri[Credite]),\"\")","v":""},{"$f":"Calcule!AN19","v":""}]
[null,null,{"$f":"Calcule!C20","v":""},{"$f":"Calcule!AL20","v":""},{"$f":"Calcule!AM20","v":""},{"$f":"IFERROR(E21*Setări!D23/SUM(tblCursuri[Credite]),\"\")","v":""},{"$f":"Calcule!AN20","v":""}]
[null,null,{"$f":"Calcule!C21","v":""},{"$f":"Calcule!AL21","v":""},{"$f":"Calcule!AM21","v":""},{"$f":"IFERROR(E22*Setări!D24/SUM(tblCursuri[Credite]),\"\")","v":""},{"$f":"Calcule!AN21","v":""}]
[null,null,{"$f":"Calcule!C22","v":""},{"$f":"Calcule!AL22","v":""},{"$f":"Calcule!AM22","v":""},{"$f":"IFERROR(E23*Setări!D25/SUM(tblCursuri[Credite]),\"\")","v":""},{"$f":"Calcule!AN22","v":""}]
[null,null,{"$f":"Calcule!C23","v":""},{"$f":"Calcule!AL23","v":""},{"$f":"Calcule!AM23","v":""},{"$f":"IFERROR(E24*Setări!D26/SUM(tblCursuri[Credite]),\"\")","v":""},{"$f":"Calcule!AN23","v":""}]
[null,null,{"$f":"Calcule!C24","v":""},{"$f":"Calcule!AL24","v":""},{"$f":"Calcule!AM24","v":""},{"$f":"IFERROR(E25*Setări!D27/SUM(tblCursuri[Credite]),\"\")","v":""},{"$f":"Calcule!AN24","v":""}]
[null,null,{"$f":"Calcule!C25","v":""},{"$f":"Calcule!AL25","v":""},{"$f":"Calcule!AM25","v":""},{"$f":"IFERROR(E26*Setări!D28/SUM(tblCursuri[Credite]),\"\")","v":""},{"$f":"Calcule!AN25","v":""}]
[null,null,{"$f":"Calcule!C26","v":""},{"$f":"Calcule!AL26","v":""},{"$f":"Calcule!AM26","v":""},{"$f":"IFERROR(E27*Setări!D29/SUM(tblCursuri[Credite]),\"\")","v":""},{"$f":"Calcule!AN26","v":""}]
[null,null,{"$f":"Calcule!C27","v":""},{"$f":"Calcule!AL27","v":""},{"$f":"Calcule!AM27","v":""},{"$f":"IFERROR(E28*Setări!D30/SUM(tblCursuri[Credite]),\"\")","v":""},{"$f":"Calcule!AN27","v":""}]
[null,null,{"$f":"Calcule!C28","v":""},{"$f":"Calcule!AL28","v":""},{"$f":"Calcule!AM28","v":""},{"$f":"IFERROR(E29*Setări!D31/SUM(tblCursuri[Credite]),\"\")","v":""},{"$f":"Calcule!AN28","v":""}]
[null,null,{"$f":"Calcule!C29","v":""},{"$f":"Calcule!AL29","v":""},{"$f":"Calcule!AM29","v":""},{"$f":"IFERROR(E30*Setări!D32/SUM(tblCursuri[Credite]),\"\")","v":""},{"$f":"Calcule!AN29","v":""}]
[null,null,{"$f":"Calcule!C30","v":""},{"$f":"Calcule!AL30","v":""},{"$f":"Calcule!AM30","v":""},{"$f":"IFERROR(E31*Setări!D33/SUM(tblCursuri[Credite]),\"\")","v":""},{"$f":"Calcule!AN30","v":""}]

{"sheet":"Setări","index":2,"n_rows":15,"n_cols":16,"rows_kept":15,"merged":[[5,2,5,15]]}
[null,"Setări"]
[null,null,"Punctaje și maparea mediilor"]
[null,null,"Procent",{"v":0,"d":"0%"},{"v":0.6,"d":"60%"},{"v":0.63,"d":"63%"},{"v":0.67,"d":"67%"},{"v":0.7,"d":"70%"},{"v":0.73,"d":"73%"},{"v":0.77,"d":"77%"},{"v":0.8,"d":"80%"},{"v":0.83,"d":"83%"},{"v":0.87,"d":"87%"},{"v":0.9,"d":"90%"},{"v":0.93,"d":"93%"},{"v":0.97,"d":"97%"}]
[null,null,"Literă examen absolvire","F","D-","D","D+","C-","C","C+","B-","B","B+","A-","A","A+"]
[null,null,"Medie",0,0.67,1,1.33,1.67,2,2.33,2.67,3,3.33,3.67,4,4]
[]
[null,null,"Punctaje ponderate pentru până la 25 de cursuri"]
[null,null,"Cursuri la care participați","Credite","Teme pentru acasă","Eseu","Test grilă","Proiect","Parțial","Examen final","Altele","% total"]
[null,null,"Franceză modernă",{"v":3,"d":"3.0"},{"v":0.1,"d":"10%"},{"v":0.15,"d":"15%"},{"v":0.15,"d":"15%"},{"v":0.1,"d":"10%"},{"v":0.2,"d":"20%"},{"v":0.3,"d":"30%"},null,{"$f":"SUM(tblCursuri[[#This Row],[Teme pentru acasă]:[Altele]])","v":{"v":1,"d":"100%"}}]
[null,null,"Fizică teoretică",{"v":3,"d":"3.0"},{"v":0.15,"d":"15%"},{"v":0.15,"d":"15%"},{"v":0.1,"d":"10%"},{"v":0.1,"d":"10%"},{"v":0.15,"d":"15%"},{"v":0.3,"d":"30%"},{"v":0.05,"d":"5%"},{"$f":"SUM(tblCursuri[[#This Row],[Teme pentru acasă]:[Altele]])","v":{"v":1,"d":"100%"}}]
[null,null,"Matematică 1",{"v":4,"d":"4.0"},{"v":0.1,"d":"10%"},{"v":0.15,"d":"15%"},{"v":0.15,"d":"15%"},{"v":0.1,"d":"10%"},{"v":0.2,"d":"20%"},{"v":0.3,"d":"30%"},null,{"$f":"SUM(tblCursuri[[#This Row],[Teme pentru acasă]:[Altele]])","v":{"v":1,"d":"100%"}}]
[null,null,"Matematică 2",{"v":4,"d":"4.0"},{"v":0.15,"d":"15%"},{"v":0.15,"d":"15%"},{"v":0.1,"d":"10%"},{"v":0.1,"d":"10%"},{"v":0.15,"d":"15%"},{"v":0.3,"d":"30%"},{"v":0.05,"d":"5%"},{"$f":"SUM(tblCursuri[[#This Row],[Teme pentru acasă]:[Altele]])","v":{"v":1,"d":"100%"}}]
[null,null,"Programare avansată în Java",{"v":5,"d":"5.0"},{"v":0.15,"d":"15%"},{"v":0.15,"d":"15%"},{"v":0.1,"d":"10%"},{"v":0.1,"d":"10%"},{"v":0.2,"d":"20%"},{"v":0.3,"d":"30%"},null,{"$f":"SUM(tblCursuri[[#This Row],[Teme pentru acasă]:[Altele]])","v":{"v":1,"d":"100%"}}]
[null,null,"Spaniolă",{"v":3,"d":"3.0"},{"v":0.1,"d":"10%"},{"v":0.15,"d":"15%"},{"v":0.17,"d":"17%"},{"v":0.13,"d":"13%"},{"v":0.2,"d":"20%"},{"v":0.2,"d":"20%"},{"v":0.05,"d":"5%"},{"$f":"SUM(tblCursuri[[#This Row],[Teme pentru acasă]:[Altele]])","v":{"v":1,"d":"100%"}}]
[null,null,"Compunere",{"v":2,"d":"2.0"},{"v":0.15,"d":"15%"},{"v":0.15,"d":"15%"},{"v":0.12,"d":"12%"},{"v":0.15,"d":"15%"},{"v":0.15,"d":"15%"},{"v":0.25,"d":"25%"},{"v":0.03,"d":"3%"},{"$f":"SUM(tblCursuri[[#This Row],[Teme pentru acasă]:[Altele]])","v":{"v":1,"d":"100%"}}]

{"sheet":"Calcule","index":3,"n_rows":657,"n_cols":40,"rows_kept":657,"hidden":true}
[null,"Calcule"]
[null,null,"Această foaie de lucru furnizează calcule pentru examenele de absolvire și mediile dvs. și trebuie să rămână ascunsă. Orice modificare adusă în această foaie poate duce la erori."]
[]
[null,null,"Listă cursuri curente","Punctaj (din 1)",{"$nulls":24},"Calcul examen absolvire"]
[null,null,"Curs",1,2,3,4,5,6,7,8,9,10,11,12,13,14,15,16,17,18,19,20,21,22,23,24,25,{"$f":"tblCursuri[[#Headers],[Teme pentru acasă]]","v":"Teme pentru acasă"},{"$f":"tblCursuri[[#Headers],[Eseu]]","v":"Eseu"},{"$f":"tblCursuri[[#Headers],[Test grilă]]","v":"Test grilă"},{"$f":"tblCursuri[[#Headers],[Proiect]]","v":"Proiect"},{"$f":"tblCursuri[[#Headers],[Parțial]]","v":"Parțial"},{"$f":"tblCursuri[[#Headers],[Examen final]]","v":"Examen final"},{"$f":"tblCursuri[[#Headers],[Altele]]","v":"Altele"},"Total","Total puncte posibile","Total %","Puncte examen absolvire","Literă examen absolvire"]
[null,null,{"$f":"IF(Setări!C9=\"\",\"\",Setări!C9)","v":"Franceză modernă"},{"$f":"IFERROR(INDEX(tblPunctajCursuri[],MATCH($C6:$C30&D$5:AB$5,Calcule!$C$33:$C$657,0),4),\"\")","v":{"v":0.8,"d":"80%"}},{"v":0.9,"d":"90%"},{"v":0.8,"d":"80%"},"","","","","","","","","","","","","","","","","","","","","","",{"$f":"IFERROR(AVERAGEIFS(tblPunctajCursuri[Punctaj],tblPunctajCursuri[Curs],Calcule!$C6,tblPunctajCursuri[Tip],Calcule!AC$5)*Setări!E9,\"\")","v":0.08333333333333334},{"$f":"IFERROR(AVERAGEIFS(tblPunctajCursuri[Punctaj],tblPunctajCursuri[Curs],Calcule!$C6,tblPunctajCursuri[Tip],Calcule!AD$5)*Setări!F9,\"\")","v":""},{"$f":"IFERROR(AVERAGEIFS(tblPunctajCursuri[Punctaj],tblPunctajCursuri[Curs],Calcule!$C6,tblPunctajCursuri[Tip],Calcule!AE$5)*Setări!G9,\"\")","v":""},{"$f":"IFERROR(AVERAGEIFS(tblPunctajCursuri[Punctaj],tblPunctajCursuri[Curs],Calcule!$C6,tblPunctajCursuri[Tip],Calcule!AF$5)*Setări!H9,\"\")","v":""},{"$f":"IFERROR(AVERAGEIFS(tblPunctajCursuri[Punctaj],tblPunctajCursuri[Curs],Calcule!$C6,tblPunctajCursuri[Tip],Calcule!AG$5)*Setări!I9,\"\")","v":""},{"$f":"IFERROR(AVERAGEIFS(tblPunctajCursuri[Punctaj],tblPunctajCursuri[Curs],Calcule!$C6,tblPunctajCursuri[Tip],Calcule!AH$5)*Setări!J9,\"\")","v":""},{"$f":"IFERROR(AVERAGEIFS(tblPunctajCursuri[Punctaj],tblPunctajCursuri[Curs],Calcule!$C6,tblPunctajCursuri[Tip],Calcule!AI$5)*Setări!K9,\"\")","v":""},{"$f":"SUM(AC6:AI6)","v":0.08333333333333334},{"$f":"SUMIFS(Setări!E9:K9,Calcule!AC6:AI6,\">0\")","v":0.1},{"$f":"IFERROR(AJ6/AK6,\"\")","v":{"v":0.8333333333333334,"d":"83%"}},{"$f":"IFERROR(HLOOKUP(AL6,lstMapareMedii,3),\"\")","v":3},{"$f":"IFERROR(HLOOKUP(AL6,lstMapareMedii,2),\"\")","v":"B"}]
[null,null,{"$f":"IF(Setări!C10=\"\",\"\",Setări!C10)","v":"Fizică teoretică"},{"v":0.95,"d":"95%"},"","","","","","","","","","","","","","","","","","","","","","","","",{"$f":"IFERROR(AVERAGEIFS(tblPunctajCursuri[Punctaj],tblPunctajCursuri[Curs],Calcule!$C7,tblPunctajCursuri[Tip],Calcule!AC$5)*Setări!E10,\"\")","v":0.1425},{"$f":"IFERROR(AVERAGEIFS(tblPunctajCursuri[Punctaj],tblPunctajCursuri[Curs],Calcule!$C7,tblPunctajCursuri[Tip],Calcule!AD$5)*Setări!F10,\"\")","v":""},{"$f":"IFERROR(AVERAGEIFS(tblPunctajCursuri[Punctaj],tblPunctajCursuri[Curs],Calcule!$C7,tblPunctajCursuri[Tip],Calcule!AE$5)*Setări!G10,\"\")","v":""},{"$f":"IFERROR(AVERAGEIFS(tblPunctajCursuri[Punctaj],tblPunctajCursuri[Curs],Calcule!$C7,tblPunctajCursuri[Tip],Calcule!AF$5)*Setări!H10,\"\")","v":""},{"$f":"IFERROR(AVERAGEIFS(tblPunctajCursuri[Punctaj],tblPunctajCursuri[Curs],Calcule!$C7,tblPunctajCursuri[Tip],Calcule!AG$5)*Setări!I10,\"\")","v":""},{"$f":"IFERROR(AVERAGEIFS(tblPunctajCursuri[Punctaj],tblPunctajCursuri[Curs],Calcule!$C7,tblPunctajCursuri[Tip],Calcule!AH$5)*Setări!J10,\"\")","v":""},{"$f":"IFERROR(AVERAGEIFS(tblPunctajCursuri[Punctaj],tblPunctajCursuri[Curs],Calcule!$C7,tblPunctajCursuri[Tip],Calcule!AI$5)*Setări!K10,\"\")","v":""},{"$f":"SUM(AC7:AI7)","v":0.1425},{"$f":"SUMIFS(Setări!E10:K10,Calcule!AC7:AI7,\">0\")","v":0.15},{"$f":"IFERROR(AJ7/AK7,\"\")","v":{"v":0.95,"d":"95%"}},4,"A"]
[null,null,{"$f":"IF(Setări!C11=\"\",\"\",Setări!C11)","v":"Matematică 1"},{"v":0.8,"d":"80%"},{"v":0.8,"d":"80%"},"","","","","","","","","","","","","","","","","","","","","","","",{"$f":"IFERROR(AVERAGEIFS(tblPunctajCursuri[Punctaj],tblPunctajCursuri[Curs],Calcule!$C8,tblPunctajCursuri[Tip],Calcule!AC$5)*Setări!E11,\"\")","v":0.08000000000000002},{"$f":"IFERROR(AVERAGEIFS(tblPunctajCursuri[Punctaj],tblPunctajCursuri[Curs],Calcule!$C8,tblPunctajCursuri[Tip],Calcule!AD$5)*Setări!F11,\"\")","v":""},{"$f":"IFERROR(AVERAGEIFS(tblPunctajCursuri[Punctaj],tblPunctajCursuri[Curs],Calcule!$C8,tblPunctajCursuri[Tip],Calcule!AE$5)*Setări!G11,\"\")","v":""},{"$f":"IFERROR(AVERAGEIFS(tblPunctajCursuri[Punctaj],tblPunctajCursuri[Curs],Calcule!$C8,tblPunctajCursuri[Tip],Calcule!AF$5)*Setări!H11,\"\")","v":""},{"$f":"IFERROR(AVERAGEIFS(tblPunctajCursuri[Punctaj],tblPunctajCursuri[Curs],Calcule!$C8,tblPunctajCursuri[Tip],Calcule!AG$5)*Setări!I11,\"\")","v":""},{"$f":"IFERROR(AVERAGEIFS(tblPunctajCursuri[Punctaj],tblPunctajCursuri[Curs],Calcule!$C8,tblPunctajCursuri[Tip],Calcule!AH$5)*Setări!J11,\"\")","v":""},{"$f":"IFERROR(AVERAGEIFS(tblPunctajCursuri[Punctaj],tblPunctajCursuri[Curs],Calcule!$C8,tblPunctajCursuri[Tip],Calcule!AI$5)*Setări!K11,\"\")","v":""},0.08000000000000002,{"$f":"SUMIFS(Setări!E11:K11,Calcule!AC8:AI8,\">0\")","v":0.1},{"v":0.8000000000000002,"d":"80%"},2.67,"B-"]
[null,null,{"$f":"IF(Setări!C12=\"\",\"\",Setări!C12)","v":"Matematică 2"},{"v":0.85,"d":"85%"},{"v":0.95,"d":"95%"},"","","","","","","","","","","","","","","","","","","","","","","",{"$f":"IFERROR(AVERAGEIFS(tblPunctajCursuri[Punctaj],tblPunctajCursuri[Curs],Calcule!$C9,tblPunctajCursuri[Tip],Calcule!AC$5)*Setări!E12,\"\")","v":0.1275},{"$f":"IFERROR(AVERAGEIFS(tblPunctajCursuri[Punctaj],tblPunctajCursuri[Curs],Calcule!$C9,tblPunctajCursuri[Tip],Calcule!AD$5)*Setări!F12,\"\")","v":""},{"$f":"IFERROR(AVERAGEIFS(tblPunctajCursuri[Punctaj],tblPunctajCursuri[Curs],Calcule!$C9,tblPunctajCursuri[Tip],Calcule!AE$5)*Setări!G12,\"\")","v":0.095},{"$f":"IFERROR(AVERAGEIFS(tblPunctajCursuri[Punctaj],tblPunctajCursuri[Curs],Calcule!$C9,tblPunctajCursuri[Tip],Calcule!AF$5)*Setări!H12,\"\")","v":""},{"$f":"IFERROR(AVERAGEIFS(tblPunctajCursuri[Punctaj],tblPunctajCursuri[Curs],Calcule!$C9,tblPunctajCursuri[Tip],Calcule!AG$5)*Setări!I12,\"\")","v":""},{"$f":"IFERROR(AVERAGEIFS(tblPunctajCursuri[Punctaj],tblPunctajCursuri[Curs],Calcule!$C9,tblPunctajCursuri[Tip],Calcule!AH$5)*Setări!J12,\"\")","v":""},{"$f":"IFERROR(AVERAGEIFS(tblPunctajCursuri[Punctaj],tblPunctajCursuri[Curs],Calcule!$C9,tblPunctajCursuri[Tip],Calcule!AI$5)*Setări!K12,\"\")","v":""},0.2225,{"$f":"SUMIFS(Setări!E12:K12,Calcule!AC9:AI9,\">0\")","v":0.25},{"v":0.89,"d":"89%"},3.33,"B+"]
[null,null,{"$f":"IF(Setări!C13=\"\",\"\",Setări!C13)","v":"Programare avansată în Java"},{"v":0.75,"d":"75%"},"","","","","","","","","","","","","","","","","","","","","","","","",{"$f":"IFERROR(AVERAGEIFS(tblPunctajCursuri[Punctaj],tblPunctajCursuri[Curs],Calcule!$C10,tblPunctajCursuri[Tip],Calcule!AC$5)*Setări!E13,\"\")","v":""},{"$f":"IFERROR(AVERAGEIFS(tblPunctajCursuri[Punctaj],tblPunctajCursuri[Curs],Calcule!$C10,tblPunctajCursuri[Tip],Calcule!AD$5)*Setări!F13,\"\")","v":""},{"$f":"IFERROR(AVERAGEIFS(tblPunctajCursuri[Punctaj],tblPunctajCursuri[Curs],Calcule!$C10,tblPunctajCursuri[Tip],Calcule!AE$5)*Setări!G13,\"\")","v":""},{"$f":"IFERROR(AVERAGEIFS(tblPunctajCursuri[Punctaj],tblPunctajCursuri[Curs],Calcule!$C10,tblPunctajCursuri[Tip],Calcule!AF$5)*Setări!H13,\"\")","v":""},{"$f":"IFERROR(AVERAGEIFS(tblPunctajCursuri[Punctaj],tblPunctajCursuri[Curs],Calcule!$C10,tblPunctajCursuri[Tip],Calcule!AG$5)*Setări!I13,\"\")","v":0.15000000000000002},{"$f":"IFERROR(AVERAGEIFS(tblPunctajCursuri[Punctaj],tblPunctajCursuri[Curs],Calcule!$C10,tblPunctajCursuri[Tip],Calcule!AH$5)*Setări!J13,\"\")","v":""},{"$f":"IFERROR(AVERAGEIFS(tblPunctajCursuri[Punctaj],tblPunctajCursuri[Curs],Calcule!$C10,tblPunctajCursuri[Tip],Calcule!AI$5)*Setări!K13,\"\")","v":""},0.15000000000000002,{"$f":"SUMIFS(Setări!E13:K13,Calcule!AC10:AI10,\">0\")","v":0.2},{"v":0.7500000000000001,"d":"75%"},2,"C"]
[null,null,{"$f":"IF(Setări!C14=\"\",\"\",Setări!C14)","v":"Spaniolă"},{"v":0.5,"d":"50%"},"","","","","","","","","","","","","","","","","","","","","","","","",{"$f":"IFERROR(AVERAGEIFS(tblPunctajCursuri[Punctaj],tblPunctajCursuri[Curs],Calcule!$C11,tblPunctajCursuri[Tip],Calcule!AC$5)*Setări!E14,\"\")","v":0.05},{"$f":"IFERROR(AVERAGEIFS(tblPunctajCursuri[Punctaj],tblPunctajCursuri[Curs],Calcule!$C11,tblPunctajCursuri[Tip],Calcule!AD$5)*Setări!F14,\"\")","v":""},{"$f":"IFERROR(AVERAGEIFS(tblPunctajCursuri[Punctaj],tblPunctajCursuri[Curs],Calcule!$C11,tblPunctajCursuri[Tip],Calcule!AE$5)*Setări!G14,\"\")","v":""},{"$f":"IFERROR(AVERAGEIFS(tblPunctajCursuri[Punctaj],tblPunctajCursuri[Curs],Calcule!$C11,tblPunctajCursuri[Tip],Calcule!AF$5)*Setări!H14,\"\")","v":""},{"$f":"IFERROR(AVERAGEIFS(tblPunctajCursuri[Punctaj],tblPunctajCursuri[Curs],Calcule!$C11,tblPunctajCursuri[Tip],Calcule!AG$5)*Setări!I14,\"\")","v":""},{"$f":"IFERROR(AVERAGEIFS(tblPunctajCursuri[Punctaj],tblPunctajCursuri[Curs],Calcule!$C11,tblPunctajCursuri[Tip],Calcule!AH$5)*Setări!J14,\"\")","v":""},{"$f":"IFERROR(AVERAGEIFS(tblPunctajCursuri[Punctaj],tblPunctajCursuri[Curs],Calcule!$C11,tblPunctajCursuri[Tip],Calcule!AI$5)*Setări!K14,\"\")","v":""},0.05,{"$f":"SUMIFS(Setări!E14:K14,Calcule!AC11:AI11,\">0\")","v":0.1},{"v":0.5,"d":"50%"},0,"F"]
[null,null,{"$f":"IF(Setări!C15=\"\",\"\",Setări!C15)","v":"Compunere"},{"v":0.95,"d":"95%"},"","","","","","","","","","","","","","","","","","","","","","","","",{"$f":"IFERROR(AVERAGEIFS(tblPunctajCursuri[Punctaj],tblPunctajCursuri[Curs],Calcule!$C12,tblPunctajCursuri[Tip],Calcule!AC$5)*Setări!E15,\"\")","v":""},{"$f":"IFERROR(AVERAGEIFS(tblPunctajCursuri[Punctaj],tblPunctajCursuri[Curs],Calcule!$C12,tblPunctajCursuri[Tip],Calcule!AD$5)*Setări!F15,\"\")","v":0.1425},{"$f":"IFERROR(AVERAGEIFS(tblPunctajCursuri[Punctaj],tblPunctajCursuri[Curs],Calcule!$C12,tblPunctajCursuri[Tip],Calcule!AE$5)*Setări!G15,\"\")","v":""},{"$f":"IFERROR(AVERAGEIFS(tblPunctajCursuri[Punctaj],tblPunctajCursuri[Curs],Calcule!$C12,tblPunctajCursuri[Tip],Calcule!AF$5)*Setări!H15,\"\")","v":""},{"$f":"IFERROR(AVERAGEIFS(tblPunctajCursuri[Punctaj],tblPunctajCursuri[Curs],Calcule!$C12,tblPunctajCursuri[Tip],Calcule!AG$5)*Setări!I15,\"\")","v":""},{"$f":"IFERROR(AVERAGEIFS(tblPunctajCursuri[Punctaj],tblPunctajCursuri[Curs],Calcule!$C12,tblPunctajCursuri[Tip],Calcule!AH$5)*Setări!J15,\"\")","v":""},{"$f":"IFERROR(AVERAGEIFS(tblPunctajCursuri[Punctaj],tblPunctajCursuri[Curs],Calcule!$C12,tblPunctajCursuri[Tip],Calcule!AI$5)*Setări!K15,\"\")","v":""},0.1425,{"$f":"SUMIFS(Setări!E15:K15,Calcule!AC12:AI12,\">0\")","v":0.15},{"v":0.95,"d":"95%"},4,"A"]
[null,null,{"$f":"IF(Setări!C16=\"\",\"\",Setări!C16)","v":""},"","","","","","","","","","","","","","","","","","","","","","","","","",{"$f":"IFERROR(AVERAGEIFS(tblPunctajCursuri[Punctaj],tblPunctajCursuri[Curs],Calcule!$C13,tblPunctajCursuri[Tip],Calcule!AC$5)*Setări!E16,\"\")","v":""},{"$f":"IFERROR(AVERAGEIFS(tblPunctajCursuri[Punctaj],tblPunctajCursuri[Curs],Calcule!$C13,tblPunctajCursuri[Tip],Calcule!AD$5)*Setări!F16,\"\")","v":""},{"$f":"IFERROR(AVERAGEIFS(tblPunctajCursuri[Punctaj],tblPunctajCursuri[Curs],Calcule!$C13,tblPunctajCursuri[Tip],Calcule!AE$5)*Setări!G16,\"\")","v":""},{"$f":"IFERROR(AVERAGEIFS(tblPunctajCursuri[Punctaj],tblPunctajCursuri[Curs],Calcule!$C13,tblPunctajCursuri[Tip],Calcule!AF$5)*Setări!H16,\"\")","v":""},{"$f":"IFERROR(AVERAGEIFS(tblPunctajCursuri[Punctaj],tblPunctajCursuri[Curs],Calcule!$C13,tblPunctajCursuri[Tip],Calcule!AG$5)*Setări!I16,\"\")","v":""},{"$f":"IFERROR(AVERAGEIFS(tblPunctajCursuri[Punctaj],tblPunctajCursuri[Curs],Calcule!$C13,tblPunctajCursuri[Tip],Calcule!AH$5)*Setări!J16,\"\")","v":""},{"$f":"IFERROR(AVERAGEIFS(tblPunctajCursuri[Punctaj],tblPunctajCursuri[Curs],Calcule!$C13,tblPunctajCursuri[Tip],Calcule!AI$5)*Setări!K16,\"\")","v":""},{"$f":"SUM(AC13:AI13)","v":0},{"$f":"SUMIFS(Setări!E16:K16,Calcule!AC13:AI13,\">0\")","v":0},{"$f":"IFERROR(AJ13/AK13,\"\")","v":""},"",""]
[null,null,{"$f":"IF(Setări!C17=\"\",\"\",Setări!C17)","v":""},"","","","","","","","","","","","","","","","","","","","","","","","","",{"$f":"IFERROR(AVERAGEIFS(tblPunctajCursuri[Punctaj],tblPunctajCursuri[Curs],Calcule!$C14,tblPunctajCursuri[Tip],Calcule!AC$5)*Setări!E17,\"\")","v":""},{"$f":"IFERROR(AVERAGEIFS(tblPunctajCursuri[Punctaj],tblPunctajCursuri[Curs],Calcule!$C14,tblPunctajCursuri[Tip],Calcule!AD$5)*Setări!F17,\"\")","v":""},{"$f":"IFERROR(AVERAGEIFS(tblPunctajCursuri[Punctaj],tblPunctajCursuri[Curs],Calcule!$C14,tblPunctajCursuri[Tip],Calcule!AE$5)*Setări!G17,\"\")","v":""},{"$f":"IFERROR(AVERAGEIFS(tblPunctajCursuri[Punctaj],tblPunctajCursuri[Curs],Calcule!$C14,tblPunctajCursuri[Tip],Calcule!AF$5)*Setări!H17,\"\")","v":""},{"$f":"IFERROR(AVERAGEIFS(tblPunctajCursuri[Punctaj],tblPunctajCursuri[Curs],Calcule!$C14,tblPunctajCursuri[Tip],Calcule!AG$5)*Setări!I17,\"\")","v":""},{"$f":"IFERROR(AVERAGEIFS(tblPunctajCursuri[Punctaj],tblPunctajCursuri[Curs],Calcule!$C14,tblPunctajCursuri[Tip],Calcule!AH$5)*Setări!J17,\"\")","v":""},{"$f":"IFERROR(AVERAGEIFS(tblPunctajCursuri[Punctaj],tblPunctajCursuri[Curs],Calcule!$C14,tblPunctajCursuri[Tip],Calcule!AI$5)*Setări!K17,\"\")","v":""},0,{"$f":"SUMIFS(Setări!E17:K17,Calcule!AC14:AI14,\">0\")","v":0},"","",""]
[null,null,{"$f":"IF(Setări!C18=\"\",\"\",Setări!C18)","v":""},"","","","","","","","","","","","","","","","","","","","","","","","","",{"$f":"IFERROR(AVERAGEIFS(tblPunctajCursuri[Punctaj],tblPunctajCursuri[Curs],Calcule!$C15,tblPunctajCursuri[Tip],Calcule!AC$5)*Setări!E18,\"\")","v":""},{"$f":"IFERROR(AVERAGEIFS(tblPunctajCursuri[Punctaj],tblPunctajCursuri[Curs],Calcule!$C15,tblPunctajCursuri[Tip],Calcule!AD$5)*Setări!F18,\"\")","v":""},{"$f":"IFERROR(AVERAGEIFS(tblPunctajCursuri[Punctaj],tblPunctajCursuri[Curs],Calcule!$C15,tblPunctajCursuri[Tip],Calcule!AE$5)*Setări!G18,\"\")","v":""},{"$f":"IFERROR(AVERAGEIFS(tblPunctajCursuri[Punctaj],tblPunctajCursuri[Curs],Calcule!$C15,tblPunctajCursuri[Tip],Calcule!AF$5)*Setări!H18,\"\")","v":""},{"$f":"IFERROR(AVERAGEIFS(tblPunctajCursuri[Punctaj],tblPunctajCursuri[Curs],Calcule!$C15,tblPunctajCursuri[Tip],Calcule!AG$5)*Setări!I18,\"\")","v":""},{"$f":"IFERROR(AVERAGEIFS(tblPunctajCursuri[Punctaj],tblPunctajCursuri[Curs],Calcule!$C15,tblPunctajCursuri[Tip],Calcule!AH$5)*Setări!J18,\"\")","v":""},{"$f":"IFERROR(AVERAGEIFS(tblPunctajCursuri[Punctaj],tblPunctajCursuri[Curs],Calcule!$C15,tblPunctajCursuri[Tip],Calcule!AI$5)*Setări!K18,\"\")","v":""},0,{"$f":"SUMIFS(Setări!E18:K18,Calcule!AC15:AI15,\">0\")","v":0},"","",""]
[null,null,{"$f":"IF(Setări!C19=\"\",\"\",Setări!C19)","v":""},"","","","","","","","","","","","","","","","","","","","","","","","","",{"$f":"IFERROR(AVERAGEIFS(tblPunctajCursuri[Punctaj],tblPunctajCursuri[Curs],Calcule!$C16,tblPunctajCursuri[Tip],Calcule!AC$5)*Setări!E19,\"\")","v":""},{"$f":"IFERROR(AVERAGEIFS(tblPunctajCursuri[Punctaj],tblPunctajCursuri[Curs],Calcule!$C16,tblPunctajCursuri[Tip],Calcule!AD$5)*Setări!F19,\"\")","v":""},{"$f":"IFERROR(AVERAGEIFS(tblPunctajCursuri[Punctaj],tblPunctajCursuri[Curs],Calcule!$C16,tblPunctajCursuri[Tip],Calcule!AE$5)*Setări!G19,\"\")","v":""},{"$f":"IFERROR(AVERAGEIFS(tblPunctajCursuri[Punctaj],tblPunctajCursuri[Curs],Calcule!$C16,tblPunctajCursuri[Tip],Calcule!AF$5)*Setări!H19,\"\")","v":""},{"$f":"IFERROR(AVERAGEIFS(tblPunctajCursuri[Punctaj],tblPunctajCursuri[Curs],Calcule!$C16,tblPunctajCursuri[Tip],Calcule!AG$5)*Setări!I19,\"\")","v":""},{"$f":"IFERROR(AVERAGEIFS(tblPunctajCursuri[Punctaj],tblPunctajCursuri[Curs],Calcule!$C16,tblPunctajCursuri[Tip],Calcule!AH$5)*Setări!J19,\"\")","v":""},{"$f":"IFERROR(AVERAGEIFS(tblPunctajCursuri[Punctaj],tblPunctajCursuri[Curs],Calcule!$C16,tblPunctajCursuri[Tip],Calcule!AI$5)*Setări!K19,\"\")","v":""},0,{"$f":"SUMIFS(Setări!E19:K19,Calcule!AC16:AI16,\">0\")","v":0},"","",""]
[null,null,{"$f":"IF(Setări!C20=\"\",\"\",Setări!C20)","v":""},"","","","","","","","","","","","","","","","","","","","","","","","","",{"$f":"IFERROR(AVERAGEIFS(tblPunctajCursuri[Punctaj],tblPunctajCursuri[Curs],Calcule!$C17,tblPunctajCursuri[Tip],Calcule!AC$5)*Setări!E20,\"\")","v":""},{"$f":"IFERROR(AVERAGEIFS(tblPunctajCursuri[Punctaj],tblPunctajCursuri[Curs],Calcule!$C17,tblPunctajCursuri[Tip],Calcule!AD$5)*Setări!F20,\"\")","v":""},{"$f":"IFERROR(AVERAGEIFS(tblPunctajCursuri[Punctaj],tblPunctajCursuri[Curs],Calcule!$C17,tblPunctajCursuri[Tip],Calcule!AE$5)*Setări!G20,\"\")","v":""},{"$f":"IFERROR(AVERAGEIFS(tblPunctajCursuri[Punctaj],tblPunctajCursuri[Curs],Calcule!$C17,tblPunctajCursuri[Tip],Calcule!AF$5)*Setări!H20,\"\")","v":""},{"$f":"IFERROR(AVERAGEIFS(tblPunctajCursuri[Punctaj],tblPunctajCursuri[Curs],Calcule!$C17,tblPunctajCursuri[Tip],Calcule!AG$5)*Setări!I20,\"\")","v":""},{"$f":"IFERROR(AVERAGEIFS(tblPunctajCursuri[Punctaj],tblPunctajCursuri[Curs],Calcule!$C17,tblPunctajCursuri[Tip],Calcule!AH$5)*Setări!J20,\"\")","v":""},{"$f":"IFERROR(AVERAGEIFS(tblPunctajCursuri[Punctaj],tblPunctajCursuri[Curs],Calcule!$C17,tblPunctajCursuri[Tip],Calcule!AI$5)*Setări!K20,\"\")","v":""},0,{"$f":"SUMIFS(Setări!E20:K20,Calcule!AC17:AI17,\">0\")","v":0},"","",""]
[null,null,{"$f":"IF(Setări!C21=\"\",\"\",Setări!C21)","v":""},"","","","","","","","","","","","","","","","","","","","","","","","","",{"$f":"IFERROR(AVERAGEIFS(tblPunctajCursuri[Punctaj],tblPunctajCursuri[Curs],Calcule!$C18,tblPunctajCursuri[Tip],Calcule!AC$5)*Setări!E21,\"\")","v":""},{"$f":"IFERROR(AVERAGEIFS(tblPunctajCursuri[Punctaj],tblPunctajCursuri[Curs],Calcule!$C18,tblPunctajCursuri[Tip],Calcule!AD$5)*Setări!F21,\"\")","v":""},{"$f":"IFERROR(AVERAGEIFS(tblPunctajCursuri[Punctaj],tblPunctajCursuri[Curs],Calcule!$C18,tblPunctajCursuri[Tip],Calcule!AE$5)*Setări!G21,\"\")","v":""},{"$f":"IFERROR(AVERAGEIFS(tblPunctajCursuri[Punctaj],tblPunctajCursuri[Curs],Calcule!$C18,tblPunctajCursuri[Tip],Calcule!AF$5)*Setări!H21,\"\")","v":""},{"$f":"IFERROR(AVERAGEIFS(tblPunctajCursuri[Punctaj],tblPunctajCursuri[Curs],Calcule!$C18,tblPunctajCursuri[Tip],Calcule!AG$5)*Setări!I21,\"\")","v":""},{"$f":"IFERROR(AVERAGEIFS(tblPunctajCursuri[Punctaj],tblPunctajCursuri[Curs],Calcule!$C18,tblPunctajCursuri[Tip],Calcule!AH$5)*Setări!J21,\"\")","v":""},{"$f":"IFERROR(AVERAGEIFS(tblPunctajCursuri[Punctaj],tblPunctajCursuri[Curs],Calcule!$C18,tblPunctajCursuri[Tip],Calcule!AI$5)*Setări!K21,\"\")","v":""},0,{"$f":"SUMIFS(Setări!E21:K21,Calcule!AC18:AI18,\">0\")","v":0},"","",""]
[null,null,{"$f":"IF(Setări!C22=\"\",\"\",Setări!C22)","v":""},"","","","","","","","","","","","","","","","","","","","","","","","","",{"$f":"IFERROR(AVERAGEIFS(tblPunctajCursuri[Punctaj],tblPunctajCursuri[Curs],Calcule!$C19,tblPunctajCursuri[Tip],Calcule!AC$5)*Setări!E22,\"\")","v":""},{"$f":"IFERROR(AVERAGEIFS(tblPunctajCursuri[Punctaj],tblPunctajCursuri[Curs],Calcule!$C19,tblPunctajCursuri[Tip],Calcule!AD$5)*Setări!F22,\"\")","v":""},{"$f":"IFERROR(AVERAGEIFS(tblPunctajCursuri[Punctaj],tblPunctajCursuri[Curs],Calcule!$C19,tblPunctajCursuri[Tip],Calcule!AE$5)*Setări!G22,\"\")","v":""},{"$f":"IFERROR(AVERAGEIFS(tblPunctajCursuri[Punctaj],tblPunctajCursuri[Curs],Calcule!$C19,tblPunctajCursuri[Tip],Calcule!AF$5)*Setări!H22,\"\")","v":""},{"$f":"IFERROR(AVERAGEIFS(tblPunctajCursuri[Punctaj],tblPunctajCursuri[Curs],Calcule!$C19,tblPunctajCursuri[Tip],Calcule!AG$5)*Setări!I22,\"\")","v":""},{"$f":"IFERROR(AVERAGEIFS(tblPunctajCursuri[Punctaj],tblPunctajCursuri[Curs],Calcule!$C19,tblPunctajCursuri[Tip],Calcule!AH$5)*Setări!J22,\"\")","v":""},{"$f":"IFERROR(AVERAGEIFS(tblPunctajCursuri[Punctaj],tblPunctajCursuri[Curs],Calcule!$C19,tblPunctajCursuri[Tip],Calcule!AI$5)*Setări!K22,\"\")","v":""},0,{"$f":"SUMIFS(Setări!E22:K22,Calcule!AC19:AI19,\">0\")","v":0},"","",""]
[null,null,{"$f":"IF(Setări!C23=\"\",\"\",Setări!C23)","v":""},"","","","","","","","","","","","","","","","","","","","","","","","","",{"$f":"IFERROR(AVERAGEIFS(tblPunctajCursuri[Punctaj],tblPunctajCursuri[Curs],Calcule!$C20,tblPunctajCursuri[Tip],Calcule!AC$5)*Setări!E23,\"\")","v":""},{"$f":"IFERROR(AVERAGEIFS(tblPunctajCursuri[Punctaj],tblPunctajCursuri[Curs],Calcule!$C20,tblPunctajCursuri[Tip],Calcule!AD$5)*Setări!F23,\"\")","v":""},{"$f":"IFERROR(AVERAGEIFS(tblPunctajCursuri[Punctaj],tblPunctajCursuri[Curs],Calcule!$C20,tblPunctajCursuri[Tip],Calcule!AE$5)*Setări!G23,\"\")","v":""},{"$f":"IFERROR(AVERAGEIFS(tblPunctajCursuri[Punctaj],tblPunctajCursuri[Curs],Calcule!$C20,tblPunctajCursuri[Tip],Calcule!AF$5)*Setări!H23,\"\")","v":""},{"$f":"IFERROR(AVERAGEIFS(tblPunctajCursuri[Punctaj],tblPunctajCursuri[Curs],Calcule!$C20,tblPunctajCursuri[Tip],Calcule!AG$5)*Setări!I23,\"\")","v":""},{"$f":"IFERROR(AVERAGEIFS(tblPunctajCursuri[Punctaj],tblPunctajCursuri[Curs],Calcule!$C20,tblPunctajCursuri[Tip],Calcule!AH$5)*Setări!J23,\"\")","v":""},{"$f":"IFERROR(AVERAGEIFS(tblPunctajCursuri[Punctaj],tblPunctajCursuri[Curs],Calcule!$C20,tblPunctajCursuri[Tip],Calcule!AI$5)*Setări!K23,\"\")","v":""},0,{"$f":"SUMIFS(Setări!E23:K23,Calcule!AC20:AI20,\">0\")","v":0},"","",""]
[null,null,{"$f":"IF(Setări!C24=\"\",\"\",Setări!C24)","v":""},"","","","","","","","","","","","","","","","","","","","","","","","","",{"$f":"IFERROR(AVERAGEIFS(tblPunctajCursuri[Punctaj],tblPunctajCursuri[Curs],Calcule!$C21,tblPunctajCursuri[Tip],Calcule!AC$5)*Setări!E24,\"\")","v":""},{"$f":"IFERROR(AVERAGEIFS(tblPunctajCursuri[Punctaj],tblPunctajCursuri[Curs],Calcule!$C21,tblPunctajCursuri[Tip],Calcule!AD$5)*Setări!F24,\"\")","v":""},{"$f":"IFERROR(AVERAGEIFS(tblPunctajCursuri[Punctaj],tblPunctajCursuri[Curs],Calcule!$C21,tblPunctajCursuri[Tip],Calcule!AE$5)*Setări!G24,\"\")","v":""},{"$f":"IFERROR(AVERAGEIFS(tblPunctajCursuri[Punctaj],tblPunctajCursuri[Curs],Calcule!$C21,tblPunctajCursuri[Tip],Calcule!AF$5)*Setări!H24,\"\")","v":""},{"$f":"IFERROR(AVERAGEIFS(tblPunctajCursuri[Punctaj],tblPunctajCursuri[Curs],Calcule!$C21,tblPunctajCursuri[Tip],Calcule!AG$5)*Setări!I24,\"\")","v":""},{"$f":"IFERROR(AVERAGEIFS(tblPunctajCursuri[Punctaj],tblPunctajCursuri[Curs],Calcule!$C21,tblPunctajCursuri[Tip],Calcule!AH$5)*Setări!J24,\"\")","v":""},{"$f":"IFERROR(AVERAGEIFS(tblPunctajCursuri[Punctaj],tblPunctajCursuri[Curs],Calcule!$C21,tblPunctajCursuri[Tip],Calcule!AI$5)*Setări!K24,\"\")","v":""},0,{"$f":"SUMIFS(Setări!E24:K24,Calcule!AC21:AI21,\">0\")","v":0},"","",""]
[null,null,{"$f":"IF(Setări!C25=\"\",\"\",Setări!C25)","v":""},"","","","","","","","","","","","","","","","","","","","","","","","","",{"$f":"IFERROR(AVERAGEIFS(tblPunctajCursuri[Punctaj],tblPunctajCursuri[Curs],Calcule!$C22,tblPunctajCursuri[Tip],Calcule!AC$5)*Setări!E25,\"\")","v":""},{"$f":"IFERROR(AVERAGEIFS(tblPunctajCursuri[Punctaj],tblPunctajCursuri[Curs],Calcule!$C22,tblPunctajCursuri[Tip],Calcule!AD$5)*Setări!F25,\"\")","v":""},{"$f":"IFERROR(AVERAGEIFS(tblPunctajCursuri[Punctaj],tblPunctajCursuri[Curs],Calcule!$C22,tblPunctajCursuri[Tip],Calcule!AE$5)*Setări!G25,\"\")","v":""},{"$f":"IFERROR(AVERAGEIFS(tblPunctajCursuri[Punctaj],tblPunctajCursuri[Curs],Calcule!$C22,tblPunctajCursuri[Tip],Calcule!AF$5)*Setări!H25,\"\")","v":""},{"$f":"IFERROR(AVERAGEIFS(tblPunctajCursuri[Punctaj],tblPunctajCursuri[Curs],Calcule!$C22,tblPunctajCursuri[Tip],Calcule!AG$5)*Setări!I25,\"\")","v":""},{"$f":"IFERROR(AVERAGEIFS(tblPunctajCursuri[Punctaj],tblPunctajCursuri[Curs],Calcule!$C22,tblPunctajCursuri[Tip],Calcule!AH$5)*Setări!J25,\"\")","v":""},{"$f":"IFERROR(AVERAGEIFS(tblPunctajCursuri[Punctaj],tblPunctajCursuri[Curs],Calcule!$C22,tblPunctajCursuri[Tip],Calcule!AI$5)*Setări!K25,\"\")","v":""},0,{"$f":"SUMIFS(Setări!E25:K25,Calcule!AC22:AI22,\">0\")","v":0},"","",""]
[null,null,{"$f":"IF(Setări!C26=\"\",\"\",Setări!C26)","v":""},"","","","","","","","","","","","","","","","","","","","","","","","","",{"$f":"IFERROR(AVERAGEIFS(tblPunctajCursuri[Punctaj],tblPunctajCursuri[Curs],Calcule!$C23,tblPunctajCursuri[Tip],Calcule!AC$5)*Setări!E26,\"\")","v":""},{"$f":"IFERROR(AVERAGEIFS(tblPunctajCursuri[Punctaj],tblPunctajCursuri[Curs],Calcule!$C23,tblPunctajCursuri[Tip],Calcule!AD$5)*Setări!F26,\"\")","v":""},{"$f":"IFERROR(AVERAGEIFS(tblPunctajCursuri[Punctaj],tblPunctajCursuri[Curs],Calcule!$C23,tblPunctajCursuri[Tip],Calcule!AE$5)*Setări!G26,\"\")","v":""},{"$f":"IFERROR(AVERAGEIFS(tblPunctajCursuri[Punctaj],tblPunctajCursuri[Curs],Calcule!$C23,tblPunctajCursuri[Tip],Calcule!AF$5)*Setări!H26,\"\")","v":""},{"$f":"IFERROR(AVERAGEIFS(tblPunctajCursuri[Punctaj],tblPunctajCursuri[Curs],Calcule!$C23,tblPunctajCursuri[Tip],Calcule!AG$5)*Setări!I26,\"\")","v":""},{"$f":"IFERROR(AVERAGEIFS(tblPunctajCursuri[Punctaj],tblPunctajCursuri[Curs],Calcule!$C23,tblPunctajCursuri[Tip],Calcule!AH$5)*Setări!J26,\"\")","v":""},{"$f":"IFERROR(AVERAGEIFS(tblPunctajCursuri[Punctaj],tblPunctajCursuri[Curs],Calcule!$C23,tblPunctajCursuri[Tip],Calcule!AI$5)*Setări!K26,\"\")","v":""},0,{"$f":"SUMIFS(Setări!E26:K26,Calcule!AC23:AI23,\">0\")","v":0},"","",""]
[null,null,{"$f":"IF(Setări!C27=\"\",\"\",Setări!C27)","v":""},"","","","","","","","","","","","","","","","","","","","","","","","","",{"$f":"IFERROR(AVERAGEIFS(tblPunctajCursuri[Punctaj],tblPunctajCursuri[Curs],Calcule!$C24,tblPunctajCursuri[Tip],Calcule!AC$5)*Setări!E27,\"\")","v":""},{"$f":"IFERROR(AVERAGEIFS(tblPunctajCursuri[Punctaj],tblPunctajCursuri[Curs],Calcule!$C24,tblPunctajCursuri[Tip],Calcule!AD$5)*Setări!F27,\"\")","v":""},{"$f":"IFERROR(AVERAGEIFS(tblPunctajCursuri[Punctaj],tblPunctajCursuri[Curs],Calcule!$C24,tblPunctajCursuri[Tip],Calcule!AE$5)*Setări!G27,\"\")","v":""},{"$f":"IFERROR(AVERAGEIFS(tblPunctajCursuri[Punctaj],tblPunctajCursuri[Curs],Calcule!$C24,tblPunctajCursuri[Tip],Calcule!AF$5)*Setări!H27,\"\")","v":""},{"$f":"IFERROR(AVERAGEIFS(tblPunctajCursuri[Punctaj],tblPunctajCursuri[Curs],Calcule!$C24,tblPunctajCursuri[Tip],Calcule!AG$5)*Setări!I27,\"\")","v":""},{"$f":"IFERROR(AVERAGEIFS(tblPunctajCursuri[Punctaj],tblPunctajCursuri[Curs],Calcule!$C24,tblPunctajCursuri[Tip],Calcule!AH$5)*Setări!J27,\"\")","v":""},{"$f":"IFERROR(AVERAGEIFS(tblPunctajCursuri[Punctaj],tblPunctajCursuri[Curs],Calcule!$C24,tblPunctajCursuri[Tip],Calcule!AI$5)*Setări!K27,\"\")","v":""},0,{"$f":"SUMIFS(Setări!E27:K27,Calcule!AC24:AI24,\">0\")","v":0},"","",""]
[null,null,{"$f":"IF(Setări!C28=\"\",\"\",Setări!C28)","v":""},"","","","","","","","","","","","","","","","","","","","","","","","","",{"$f":"IFERROR(AVERAGEIFS(tblPunctajCursuri[Punctaj],tblPunctajCursuri[Curs],Calcule!$C25,tblPunctajCursuri[Tip],Calcule!AC$5)*Setări!E28,\"\")","v":""},{"$f":"IFERROR(AVERAGEIFS(tblPunctajCursuri[Punctaj],tblPunctajCursuri[Curs],Calcule!$C25,tblPunctajCursuri[Tip],Calcule!AD$5)*Setări!F28,\"\")","v":""},{"$f":"IFERROR(AVERAGEIFS(tblPunctajCursuri[Punctaj],tblPunctajCursuri[Curs],Calcule!$C25,tblPunctajCursuri[Tip],Calcule!AE$5)*Setări!G28,\"\")","v":""},{"$f":"IFERROR(AVERAGEIFS(tblPunctajCursuri[Punctaj],tblPunctajCursuri[Curs],Calcule!$C25,tblPunctajCursuri[Tip],Calcule!AF$5)*Setări!H28,\"\")","v":""},{"$f":"IFERROR(AVERAGEIFS(tblPunctajCursuri[Punctaj],tblPunctajCursuri[Curs],Calcule!$C25,tblPunctajCursuri[Tip],Calcule!AG$5)*Setări!I28,\"\")","v":""},{"$f":"IFERROR(AVERAGEIFS(tblPunctajCursuri[Punctaj],tblPunctajCursuri[Curs],Calcule!$C25,tblPunctajCursuri[Tip],Calcule!AH$5)*Setări!J28,\"\")","v":""},{"$f":"IFERROR(AVERAGEIFS(tblPunctajCursuri[Punctaj],tblPunctajCursuri[Curs],Calcule!$C25,tblPunctajCursuri[Tip],Calcule!AI$5)*Setări!K28,\"\")","v":""},0,{"$f":"SUMIFS(Setări!E28:K28,Calcule!AC25:AI25,\">0\")","v":0},"","",""]
[null,null,{"$f":"IF(Setări!C29=\"\",\"\",Setări!C29)","v":""},"","","","","","","","","","","","","","","","","","","","","","","","","",{"$f":"IFERROR(AVERAGEIFS(tblPunctajCursuri[Punctaj],tblPunctajCursuri[Curs],Calcule!$C26,tblPunctajCursuri[Tip],Calcule!AC$5)*Setări!E29,\"\")","v":""},{"$f":"IFERROR(AVERAGEIFS(tblPunctajCursuri[Punctaj],tblPunctajCursuri[Curs],Calcule!$C26,tblPunctajCursuri[Tip],Calcule!AD$5)*Setări!F29,\"\")","v":""},{"$f":"IFERROR(AVERAGEIFS(tblPunctajCursuri[Punctaj],tblPunctajCursuri[Curs],Calcule!$C26,tblPunctajCursuri[Tip],Calcule!AE$5)*Setări!G29,\"\")","v":""},{"$f":"IFERROR(AVERAGEIFS(tblPunctajCursuri[Punctaj],tblPunctajCursuri[Curs],Calcule!$C26,tblPunctajCursuri[Tip],Calcule!AF$5)*Setări!H29,\"\")","v":""},{"$f":"IFERROR(AVERAGEIFS(tblPunctajCursuri[Punctaj],tblPunctajCursuri[Curs],Calcule!$C26,tblPunctajCursuri[Tip],Calcule!AG$5)*Setări!I29,\"\")","v":""},{"$f":"IFERROR(AVERAGEIFS(tblPunctajCursuri[Punctaj],tblPunctajCursuri[Curs],Calcule!$C26,tblPunctajCursuri[Tip],Calcule!AH$5)*Setări!J29,\"\")","v":""},{"$f":"IFERROR(AVERAGEIFS(tblPunctajCursuri[Punctaj],tblPunctajCursuri[Curs],Calcule!$C26,tblPunctajCursuri[Tip],Calcule!AI$5)*Setări!K29,\"\")","v":""},0,{"$f":"SUMIFS(Setări!E29:K29,Calcule!AC26:AI26,\">0\")","v":0},"","",""]
[null,null,{"$f":"IF(Setări!C30=\"\",\"\",Setări!C30)","v":""},"","","","","","","","","","","","","","","","","","","","","","","","","",{"$f":"IFERROR(AVERAGEIFS(tblPunctajCursuri[Punctaj],tblPunctajCursuri[Curs],Calcule!$C27,tblPunctajCursuri[Tip],Calcule!AC$5)*Setări!E30,\"\")","v":""},{"$f":"IFERROR(AVERAGEIFS(tblPunctajCursuri[Punctaj],tblPunctajCursuri[Curs],Calcule!$C27,tblPunctajCursuri[Tip],Calcule!AD$5)*Setări!F30,\"\")","v":""},{"$f":"IFERROR(AVERAGEIFS(tblPunctajCursuri[Punctaj],tblPunctajCursuri[Curs],Calcule!$C27,tblPunctajCursuri[Tip],Calcule!AE$5)*Setări!G30,\"\")","v":""},{"$f":"IFERROR(AVERAGEIFS(tblPunctajCursuri[Punctaj],tblPunctajCursuri[Curs],Calcule!$C27,tblPunctajCursuri[Tip],Calcule!AF$5)*Setări!H30,\"\")","v":""},{"$f":"IFERROR(AVERAGEIFS(tblPunctajCursuri[Punctaj],tblPunctajCursuri[Curs],Calcule!$C27,tblPunctajCursuri[Tip],Calcule!AG$5)*Setări!I30,\"\")","v":""},{"$f":"IFERROR(AVERAGEIFS(tblPunctajCursuri[Punctaj],tblPunctajCursuri[Curs],Calcule!$C27,tblPunctajCursuri[Tip],Calcule!AH$5)*Setări!J30,\"\")","v":""},{"$f":"IFERROR(AVERAGEIFS(tblPunctajCursuri[Punctaj],tblPunctajCursuri[Curs],Calcule!$C27,tblPunctajCursuri[Tip],Calcule!AI$5)*Setări!K30,\"\")","v":""},0,{"$f":"SUMIFS(Setări!E30:K30,Calcule!AC27:AI27,\">0\")","v":0},"","",""]
[null,null,{"$f":"IF(Setări!C31=\"\",\"\",Setări!C31)","v":""},"","","","","","","","","","","","","","","","","","","","","","","","","",{"$f":"IFERROR(AVERAGEIFS(tblPunctajCursuri[Punctaj],tblPunctajCursuri[Curs],Calcule!$C28,tblPunctajCursuri[Tip],Calcule!AC$5)*Setări!E31,\"\")","v":""},{"$f":"IFERROR(AVERAGEIFS(tblPunctajCursuri[Punctaj],tblPunctajCursuri[Curs],Calcule!$C28,tblPunctajCursuri[Tip],Calcule!AD$5)*Setări!F31,\"\")","v":""},{"$f":"IFERROR(AVERAGEIFS(tblPunctajCursuri[Punctaj],tblPunctajCursuri[Curs],Calcule!$C28,tblPunctajCursuri[Tip],Calcule!AE$5)*Setări!G31,\"\")","v":""},{"$f":"IFERROR(AVERAGEIFS(tblPunctajCursuri[Punctaj],tblPunctajCursuri[Curs],Calcule!$C28,tblPunctajCursuri[Tip],Calcule!AF$5)*Setări!H31,\"\")","v":""},{"$f":"IFERROR(AVERAGEIFS(tblPunctajCursuri[Punctaj],tblPunctajCursuri[Curs],Calcule!$C28,tblPunctajCursuri[Tip],Calcule!AG$5)*Setări!I31,\"\")","v":""},{"$f":"IFERROR(AVERAGEIFS(tblPunctajCursuri[Punctaj],tblPunctajCursuri[Curs],Calcule!$C28,tblPunctajCursuri[Tip],Calcule!AH$5)*Setări!J31,\"\")","v":""},{"$f":"IFERROR(AVERAGEIFS(tblPunctajCursuri[Punctaj],tblPunctajCursuri[Curs],Calcule!$C28,tblPunctajCursuri[Tip],Calcule!AI$5)*Setări!K31,\"\")","v":""},0,{"$f":"SUMIFS(Setări!E31:K31,Calcule!AC28:AI28,\">0\")","v":0},"","",""]
[null,null,{"$f":"IF(Setări!C32=\"\",\"\",Setări!C32)","v":""},"","","","","","","","","","","","","","","","","","","","","","","","","",{"$f":"IFERROR(AVERAGEIFS(tblPunctajCursuri[Punctaj],tblPunctajCursuri[Curs],Calcule!$C29,tblPunctajCursuri[Tip],Calcule!AC$5)*Setări!E32,\"\")","v":""},{"$f":"IFERROR(AVERAGEIFS(tblPunctajCursuri[Punctaj],tblPunctajCursuri[Curs],Calcule!$C29,tblPunctajCursuri[Tip],Calcule!AD$5)*Setări!F32,\"\")","v":""},{"$f":"IFERROR(AVERAGEIFS(tblPunctajCursuri[Punctaj],tblPunctajCursuri[Curs],Calcule!$C29,tblPunctajCursuri[Tip],Calcule!AE$5)*Setări!G32,\"\")","v":""},{"$f":"IFERROR(AVERAGEIFS(tblPunctajCursuri[Punctaj],tblPunctajCursuri[Curs],Calcule!$C29,tblPunctajCursuri[Tip],Calcule!AF$5)*Setări!H32,\"\")","v":""},{"$f":"IFERROR(AVERAGEIFS(tblPunctajCursuri[Punctaj],tblPunctajCursuri[Curs],Calcule!$C29,tblPunctajCursuri[Tip],Calcule!AG$5)*Setări!I32,\"\")","v":""},{"$f":"IFERROR(AVERAGEIFS(tblPunctajCursuri[Punctaj],tblPunctajCursuri[Curs],Calcule!$C29,tblPunctajCursuri[Tip],Calcule!AH$5)*Setări!J32,\"\")","v":""},{"$f":"IFERROR(AVERAGEIFS(tblPunctajCursuri[Punctaj],tblPunctajCursuri[Curs],Calcule!$C29,tblPunctajCursuri[Tip],Calcule!AI$5)*Setări!K32,\"\")","v":""},0,{"$f":"SUMIFS(Setări!E32:K32,Calcule!AC29:AI29,\">0\")","v":0},"","",""]
[null,null,{"$f":"IF(Setări!C33=\"\",\"\",Setări!C33)","v":""},"","","","","","","","","","","","","","","","","","","","","","","","","",{"$f":"IFERROR(AVERAGEIFS(tblPunctajCursuri[Punctaj],tblPunctajCursuri[Curs],Calcule!$C30,tblPunctajCursuri[Tip],Calcule!AC$5)*Setări!E33,\"\")","v":""},{"$f":"IFERROR(AVERAGEIFS(tblPunctajCursuri[Punctaj],tblPunctajCursuri[Curs],Calcule!$C30,tblPunctajCursuri[Tip],Calcule!AD$5)*Setări!F33,\"\")","v":""},{"$f":"IFERROR(AVERAGEIFS(tblPunctajCursuri[Punctaj],tblPunctajCursuri[Curs],Calcule!$C30,tblPunctajCursuri[Tip],Calcule!AE$5)*Setări!G33,\"\")","v":""},{"$f":"IFERROR(AVERAGEIFS(tblPunctajCursuri[Punctaj],tblPunctajCursuri[Curs],Calcule!$C30,tblPunctajCursuri[Tip],Calcule!AF$5)*Setări!H33,\"\")","v":""},{"$f":"IFERROR(AVERAGEIFS(tblPunctajCursuri[Punctaj],tblPunctajCursuri[Curs],Calcule!$C30,tblPunctajCursuri[Tip],Calcule!AG$5)*Setări!I33,\"\")","v":""},{"$f":"IFERROR(AVERAGEIFS(tblPunctajCursuri[Punctaj],tblPunctajCursuri[Curs],Calcule!$C30,tblPunctajCursuri[Tip],Calcule!AH$5)*Setări!J33,\"\")","v":""},{"$f":"IFERROR(AVERAGEIFS(tblPunctajCursuri[Punctaj],tblPunctajCursuri[Curs],Calcule!$C30,tblPunctajCursuri[Tip],Calcule!AI$5)*Setări!K33,\"\")","v":""},0,{"$f":"SUMIFS(Setări!E33:K33,Calcule!AC30:AI30,\">0\")","v":0},"","",""]
[]
[]
[null,1,{"$f":"'Urmărire punctaj'!C4&COUNTIF('Urmărire punctaj'!$C$4:C4,'Urmărire punctaj'!C4)","v":"Franceză modernă1"}]
[null,2,{"$f":"'Urmărire punctaj'!C5&COUNTIF('Urmărire punctaj'!$C$4:C5,'Urmărire punctaj'!C5)","v":"Programare avansată în Java1"}]
[null,3,{"$f":"'Urmărire punctaj'!C6&COUNTIF('Urmărire punctaj'!$C$4:C6,'Urmărire punctaj'!C6)","v":"Spaniolă1"}]
[null,4,{"$f":"'Urmărire punctaj'!C7&COUNTIF('Urmărire punctaj'!$C$4:C7,'Urmărire punctaj'!C7)","v":"Fizică teoretică1"}]
[null,5,{"$f":"'Urmărire punctaj'!C8&COUNTIF('Urmărire punctaj'!$C$4:C8,'Urmărire punctaj'!C8)","v":"Franceză modernă2"}]
[null,6,{"$f":"'Urmărire punctaj'!C9&COUNTIF('Urmărire punctaj'!$C$4:C9,'Urmărire punctaj'!C9)","v":"Franceză modernă3"}]
[null,7,{"$f":"'Urmărire punctaj'!C10&COUNTIF('Urmărire punctaj'!$C$4:C10,'Urmărire punctaj'!C10)","v":"Compunere1"}]
[null,8,{"$f":"'Urmărire punctaj'!C11&COUNTIF('Urmărire punctaj'!$C$4:C11,'Urmărire punctaj'!C11)","v":"Matematică 11"}]
[null,9,{"$f":"'Urmărire punctaj'!C12&COUNTIF('Urmărire punctaj'!$C$4:C12,'Urmărire punctaj'!C12)","v":"Matematică 21"}]
[null,10,{"$f":"'Urmărire punctaj'!C13&COUNTIF('Urmărire punctaj'!$C$4:C13,'Urmărire punctaj'!C13)","v":"Matematică 12"}]
[null,11,{"$f":"'Urmărire punctaj'!C14&COUNTIF('Urmărire punctaj'!$C$4:C14,'Urmărire punctaj'!C14)","v":"Matematică 22"}]
[null,12,{"$f":"'Urmărire punctaj'!C15&COUNTIF('Urmărire punctaj'!$C$4:C15,'Urmărire punctaj'!C15)","v":"0"}]
[null,13,{"$f":"'Urmărire punctaj'!C16&COUNTIF('Urmărire punctaj'!$C$4:C16,'Urmărire punctaj'!C16)","v":"0"}]
[null,14,{"$f":"'Urmărire punctaj'!C17&COUNTIF('Urmărire punctaj'!$C$4:C17,'Urmărire punctaj'!C17)","v":"0"}]
[null,15,{"$f":"'Urmărire punctaj'!C18&COUNTIF('Urmărire punctaj'!$C$4:C18,'Urmărire punctaj'!C18)","v":"0"}]
[null,16,{"$f":"'Urmărire punctaj'!C19&COUNTIF('Urmărire punctaj'!$C$4:C19,'Urmărire punctaj'!C19)","v":"0"}]
[null,17,{"$f":"'Urmărire punctaj'!C20&COUNTIF('Urmărire punctaj'!$C$4:C20,'Urmărire punctaj'!C20)","v":"0"}]
[null,18,{"$f":"'Urmărire punctaj'!C21&COUNTIF('Urmărire punctaj'!$C$4:C21,'Urmărire punctaj'!C21)","v":"0"}]
[null,19,{"$f":"'Urmărire punctaj'!C22&COUNTIF('Urmărire punctaj'!$C$4:C22,'Urmărire punctaj'!C22)","v":"0"}]
[null,20,{"$f":"'Urmărire punctaj'!C23&COUNTIF('Urmărire punctaj'!$C$4:C23,'Urmărire punctaj'!C23)","v":"0"}]
[null,21,{"$f":"'Urmărire punctaj'!C24&COUNTIF('Urmărire punctaj'!$C$4:C24,'Urmărire punctaj'!C24)","v":"0"}]
[null,22,{"$f":"'Urmărire punctaj'!C25&COUNTIF('Urmărire punctaj'!$C$4:C25,'Urmărire punctaj'!C25)","v":"0"}]
[null,23,{"$f":"'Urmărire punctaj'!C26&COUNTIF('Urmărire punctaj'!$C$4:C26,'Urmărire punctaj'!C26)","v":"0"}]
[null,24,{"$f":"'Urmărire punctaj'!C27&COUNTIF('Urmărire punctaj'!$C$4:C27,'Urmărire punctaj'!C27)","v":"0"}]
[null,25,{"$f":"'Urmărire punctaj'!C28&COUNTIF('Urmărire punctaj'!$C$4:C28,'Urmărire punctaj'!C28)","v":"0"}]
[null,26,{"$f":"'Urmărire punctaj'!C29&COUNTIF('Urmărire punctaj'!$C$4:C29,'Urmărire punctaj'!C29)","v":"0"}]
[null,27,{"$f":"'Urmărire punctaj'!C30&COUNTIF('Urmărire punctaj'!$C$4:C30,'Urmărire punctaj'!C30)","v":"0"}]
[null,28,{"$f":"'Urmărire punctaj'!C31&COUNTIF('Urmărire punctaj'!$C$4:C31,'Urmărire punctaj'!C31)","v":"0"}]
[null,29,{"$f":"'Urmărire punctaj'!C32&COUNTIF('Urmărire punctaj'!$C$4:C32,'Urmărire punctaj'!C32)","v":"0"}]
[null,30,{"$f":"'Urmărire punctaj'!C33&COUNTIF('Urmărire punctaj'!$C$4:C33,'Urmărire punctaj'!C33)","v":"0"}]
[null,31,{"$f":"'Urmărire punctaj'!C34&COUNTIF('Urmărire punctaj'!$C$4:C34,'Urmărire punctaj'!C34)","v":"0"}]
[null,32,{"$f":"'Urmărire punctaj'!C35&COUNTIF('Urmărire punctaj'!$C$4:C35,'Urmărire punctaj'!C35)","v":"0"}]
[null,33,{"$f":"'Urmărire punctaj'!C36&COUNTIF('Urmărire punctaj'!$C$4:C36,'Urmărire punctaj'!C36)","v":"0"}]
[null,34,{"$f":"'Urmărire punctaj'!C37&COUNTIF('Urmărire punctaj'!$C$4:C37,'Urmărire punctaj'!C37)","v":"0"}]
[null,35,{"$f":"'Urmărire punctaj'!C38&COUNTIF('Urmărire punctaj'!$C$4:C38,'Urmărire punctaj'!C38)","v":"0"}]
[null,36,{"$f":"'Urmărire punctaj'!C39&COUNTIF('Urmărire punctaj'!$C$4:C39,'Urmărire punctaj'!C39)","v":"0"}]
[null,37,{"$f":"'Urmărire punctaj'!C40&COUNTIF('Urmărire punctaj'!$C$4:C40,'Urmărire punctaj'!C40)","v":"0"}]
[null,38,{"$f":"'Urmărire punctaj'!C41&COUNTIF('Urmărire punctaj'!$C$4:C41,'Urmărire punctaj'!C41)","v":"0"}]
[null,39,{"$f":"'Urmărire punctaj'!C42&COUNTIF('Urmărire punctaj'!$C$4:C42,'Urmărire punctaj'!C42)","v":"0"}]
[null,40,{"$f":"'Urmărire punctaj'!C43&COUNTIF('Urmărire punctaj'!$C$4:C43,'Urmărire punctaj'!C43)","v":"0"}]
[null,41,{"$f":"'Urmărire punctaj'!C44&COUNTIF('Urmărire punctaj'!$C$4:C44,'Urmărire punctaj'!C44)","v":"0"}]
[null,42,{"$f":"'Urmărire punctaj'!C45&COUNTIF('Urmărire punctaj'!$C$4:C45,'Urmărire punctaj'!C45)","v":"0"}]
[null,43,{"$f":"'Urmărire punctaj'!C46&COUNTIF('Urmărire punctaj'!$C$4:C46,'Urmărire punctaj'!C46)","v":"0"}]
[null,44,{"$f":"'Urmărire punctaj'!C47&COUNTIF('Urmărire punctaj'!$C$4:C47,'Urmărire punctaj'!C47)","v":"0"}]
[null,45,{"$f":"'Urmărire punctaj'!C48&COUNTIF('Urmărire punctaj'!$C$4:C48,'Urmărire punctaj'!C48)","v":"0"}]
[null,46,{"$f":"'Urmărire punctaj'!C49&COUNTIF('Urmărire punctaj'!$C$4:C49,'Urmărire punctaj'!C49)","v":"0"}]
[null,47,{"$f":"'Urmărire punctaj'!C50&COUNTIF('Urmărire punctaj'!$C$4:C50,'Urmărire punctaj'!C50)","v":"0"}]
[null,48,{"$f":"'Urmărire punctaj'!C51&COUNTIF('Urmărire punctaj'!$C$4:C51,'Urmărire punctaj'!C51)","v":"0"}]
[null,49,{"$f":"'Urmărire punctaj'!C52&COUNTIF('Urmărire punctaj'!$C$4:C52,'Urmărire punctaj'!C52)","v":"0"}]
[null,50,{"$f":"'Urmărire punctaj'!C53&COUNTIF('Urmărire punctaj'!$C$4:C53,'Urmărire punctaj'!C53)","v":"0"}]
[null,51,{"$f":"'Urmărire punctaj'!C54&COUNTIF('Urmărire punctaj'!$C$4:C54,'Urmărire punctaj'!C54)","v":"0"}]
[null,52,{"$f":"'Urmărire punctaj'!C55&COUNTIF('Urmărire punctaj'!$C$4:C55,'Urmărire punctaj'!C55)","v":"0"}]
[null,53,{"$f":"'Urmărire punctaj'!C56&COUNTIF('Urmărire punctaj'!$C$4:C56,'Urmărire punctaj'!C56)","v":"0"}]
[null,54,{"$f":"'Urmărire punctaj'!C57&COUNTIF('Urmărire punctaj'!$C$4:C57,'Urmărire punctaj'!C57)","v":"0"}]
[null,55,{"$f":"'Urmărire punctaj'!C58&COUNTIF('Urmărire punctaj'!$C$4:C58,'Urmărire punctaj'!C58)","v":"0"}]
[null,56,{"$f":"'Urmărire punctaj'!C59&COUNTIF('Urmărire punctaj'!$C$4:C59,'Urmărire punctaj'!C59)","v":"0"}]
[null,57,{"$f":"'Urmărire punctaj'!C60&COUNTIF('Urmărire punctaj'!$C$4:C60,'Urmărire punctaj'!C60)","v":"0"}]
[null,58,{"$f":"'Urmărire punctaj'!C61&COUNTIF('Urmărire punctaj'!$C$4:C61,'Urmărire punctaj'!C61)","v":"0"}]
[null,59,{"$f":"'Urmărire punctaj'!C62&COUNTIF('Urmărire punctaj'!$C$4:C62,'Urmărire punctaj'!C62)","v":"0"}]
[null,60,{"$f":"'Urmărire punctaj'!C63&COUNTIF('Urmărire punctaj'!$C$4:C63,'Urmărire punctaj'!C63)","v":"0"}]
[null,61,{"$f":"'Urmărire punctaj'!C64&COUNTIF('Urmărire punctaj'!$C$4:C64,'Urmărire punctaj'!C64)","v":"0"}]
[null,62,{"$f":"'Urmărire punctaj'!C65&COUNTIF('Urmărire punctaj'!$C$4:C65,'Urmărire punctaj'!C65)","v":"0"}]
[null,63,{"$f":"'Urmărire punctaj'!C66&COUNTIF('Urmărire punctaj'!$C$4:C66,'Urmărire punctaj'!C66)","v":"0"}]
[null,64,{"$f":"'Urmărire punctaj'!C67&COUNTIF('Urmărire punctaj'!$C$4:C67,'Urmărire punctaj'!C67)","v":"0"}]
[null,65,{"$f":"'Urmărire punctaj'!C68&COUNTIF('Urmărire punctaj'!$C$4:C68,'Urmărire punctaj'!C68)","v":"0"}]
[null,66,{"$f":"'Urmărire punctaj'!C69&COUNTIF('Urmărire punctaj'!$C$4:C69,'Urmărire punctaj'!C69)","v":"0"}]
[null,67,{"$f":"'Urmărire punctaj'!C70&COUNTIF('Urmărire punctaj'!$C$4:C70,'Urmărire punctaj'!C70)","v":"0"}]
[null,68,{"$f":"'Urmărire punctaj'!C71&COUNTIF('Urmărire punctaj'!$C$4:C71,'Urmărire punctaj'!C71)","v":"0"}]
[null,69,{"$f":"'Urmărire punctaj'!C72&COUNTIF('Urmărire punctaj'!$C$4:C72,'Urmărire punctaj'!C72)","v":"0"}]
[null,70,{"$f":"'Urmărire punctaj'!C73&COUNTIF('Urmărire punctaj'!$C$4:C73,'Urmărire punctaj'!C73)","v":"0"}]
[null,71,{"$f":"'Urmărire punctaj'!C74&COUNTIF('Urmărire punctaj'!$C$4:C74,'Urmărire punctaj'!C74)","v":"0"}]
[null,72,{"$f":"'Urmărire punctaj'!C75&COUNTIF('Urmărire punctaj'!$C$4:C75,'Urmărire punctaj'!C75)","v":"0"}]
[null,73,{"$f":"'Urmărire punctaj'!C76&COUNTIF('Urmărire punctaj'!$C$4:C76,'Urmărire punctaj'!C76)","v":"0"}]
[null,74,{"$f":"'Urmărire punctaj'!C77&COUNTIF('Urmărire punctaj'!$C$4:C77,'Urmărire punctaj'!C77)","v":"0"}]
[null,75,{"$f":"'Urmărire punctaj'!C78&COUNTIF('Urmărire punctaj'!$C$4:C78,'Urmărire punctaj'!C78)","v":"0"}]
[null,76,{"$f":"'Urmărire punctaj'!C79&COUNTIF('Urmărire punctaj'!$C$4:C79,'Urmărire punctaj'!C79)","v":"0"}]
[null,77,{"$f":"'Urmărire punctaj'!C80&COUNTIF('Urmărire punctaj'!$C$4:C80,'Urmărire punctaj'!C80)","v":"0"}]
[null,78,{"$f":"'Urmărire punctaj'!C81&COUNTIF('Urmărire punctaj'!$C$4:C81,'Urmărire punctaj'!C81)","v":"0"}]
[null,79,{"$f":"'Urmărire punctaj'!C82&COUNTIF('Urmărire punctaj'!$C$4:C82,'Urmărire punctaj'!C82)","v":"0"}]
[null,80,{"$f":"'Urmărire punctaj'!C83&COUNTIF('Urmărire punctaj'!$C$4:C83,'Urmărire punctaj'!C83)","v":"0"}]
[null,81,{"$f":"'Urmărire punctaj'!C84&COUNTIF('Urmărire punctaj'!$C$4:C84,'Urmărire punctaj'!C84)","v":"0"}]
[null,82,{"$f":"'Urmărire punctaj'!C85&COUNTIF('Urmărire punctaj'!$C$4:C85,'Urmărire punctaj'!C85)","v":"0"}]
[null,83,{"$f":"'Urmărire punctaj'!C86&COUNTIF('Urmărire punctaj'!$C$4:C86,'Urmărire punctaj'!C86)","v":"0"}]
[null,84,{"$f":"'Urmărire punctaj'!C87&COUNTIF('Urmărire punctaj'!$C$4:C87,'Urmărire punctaj'!C87)","v":"0"}]
[null,85,{"$f":"'Urmărire punctaj'!C88&COUNTIF('Urmărire punctaj'!$C$4:C88,'Urmărire punctaj'!C88)","v":"0"}]
[null,86,{"$f":"'Urmărire punctaj'!C89&COUNTIF('Urmărire punctaj'!$C$4:C89,'Urmărire punctaj'!C89)","v":"0"}]
[null,87,{"$f":"'Urmărire punctaj'!C90&COUNTIF('Urmărire punctaj'!$C$4:C90,'Urmărire punctaj'!C90)","v":"0"}]
[null,88,{"$f":"'Urmărire punctaj'!C91&COUNTIF('Urmărire punctaj'!$C$4:C91,'Urmărire punctaj'!C91)","v":"0"}]
[null,89,{"$f":"'Urmărire punctaj'!C92&COUNTIF('Urmărire punctaj'!$C$4:C92,'Urmărire punctaj'!C92)","v":"0"}]
[null,90,{"$f":"'Urmărire punctaj'!C93&COUNTIF('Urmărire punctaj'!$C$4:C93,'Urmărire punctaj'!C93)","v":"0"}]
[null,91,{"$f":"'Urmărire punctaj'!C94&COUNTIF('Urmărire punctaj'!$C$4:C94,'Urmărire punctaj'!C94)","v":"0"}]
[null,92,{"$f":"'Urmărire punctaj'!C95&COUNTIF('Urmărire punctaj'!$C$4:C95,'Urmărire punctaj'!C95)","v":"0"}]
[null,93,{"$f":"'Urmărire punctaj'!C96&COUNTIF('Urmărire punctaj'!$C$4:C96,'Urmărire punctaj'!C96)","v":"0"}]
[null,94,{"$f":"'Urmărire punctaj'!C97&COUNTIF('Urmărire punctaj'!$C$4:C97,'Urmărire punctaj'!C97)","v":"0"}]
[null,95,{"$f":"'Urmărire punctaj'!C98&COUNTIF('Urmărire punctaj'!$C$4:C98,'Urmărire punctaj'!C98)","v":"0"}]
[null,96,{"$f":"'Urmărire punctaj'!C99&COUNTIF('Urmărire punctaj'!$C$4:C99,'Urmărire punctaj'!C99)","v":"0"}]
[null,97,{"$f":"'Urmărire punctaj'!C100&COUNTIF('Urmărire punctaj'!$C$4:C100,'Urmărire punctaj'!C100)","v":"0"}]
[null,98,{"$f":"'Urmărire punctaj'!C101&COUNTIF('Urmărire punctaj'!$C$4:C101,'Urmărire punctaj'!C101)","v":"0"}]
[null,99,{"$f":"'Urmărire punctaj'!C102&COUNTIF('Urmărire punctaj'!$C$4:C102,'Urmărire punctaj'!C102)","v":"0"}]
[null,100,{"$f":"'Urmărire punctaj'!C103&COUNTIF('Urmărire punctaj'!$C$4:C103,'Urmărire punctaj'!C103)","v":"0"}]
[null,101,{"$f":"'Urmărire punctaj'!C104&COUNTIF('Urmărire punctaj'!$C$4:C104,'Urmărire punctaj'!C104)","v":"0"}]
[null,102,{"$f":"'Urmărire punctaj'!C105&COUNTIF('Urmărire punctaj'!$C$4:C105,'Urmărire punctaj'!C105)","v":"0"}]
[null,103,{"$f":"'Urmărire punctaj'!C106&COUNTIF('Urmărire punctaj'!$C$4:C106,'Urmărire punctaj'!C106)","v":"0"}]
[null,104,{"$f":"'Urmărire punctaj'!C107&COUNTIF('Urmărire punctaj'!$C$4:C107,'Urmărire punctaj'!C107)","v":"0"}]
[null,105,{"$f":"'Urmărire punctaj'!C108&COUNTIF('Urmărire punctaj'!$C$4:C108,'Urmărire punctaj'!C108)","v":"0"}]
[null,106,{"$f":"'Urmărire punctaj'!C109&COUNTIF('Urmărire punctaj'!$C$4:C109,'Urmărire punctaj'!C109)","v":"0"}]
[null,107,{"$f":"'Urmărire punctaj'!C110&COUNTIF('Urmărire punctaj'!$C$4:C110,'Urmărire punctaj'!C110)","v":"0"}]
[null,108,{"$f":"'Urmărire punctaj'!C111&COUNTIF('Urmărire punctaj'!$C$4:C111,'Urmărire punctaj'!C111)","v":"0"}]
[null,109,{"$f":"'Urmărire punctaj'!C112&COUNTIF('Urmărire punctaj'!$C$4:C112,'Urmărire punctaj'!C112)","v":"0"}]
[null,110,{"$f":"'Urmărire punctaj'!C113&COUNTIF('Urmărire punctaj'!$C$4:C113,'Urmărire punctaj'!C113)","v":"0"}]
[null,111,{"$f":"'Urmărire punctaj'!C114&COUNTIF('Urmărire punctaj'!$C$4:C114,'Urmărire punctaj'!C114)","v":"0"}]
[null,112,{"$f":"'Urmărire punctaj'!C115&COUNTIF('Urmărire punctaj'!$C$4:C115,'Urmărire punctaj'!C115)","v":"0"}]
[null,113,{"$f":"'Urmărire punctaj'!C116&COUNTIF('Urmărire punctaj'!$C$4:C116,'Urmărire punctaj'!C116)","v":"0"}]
[null,114,{"$f":"'Urmărire punctaj'!C117&COUNTIF('Urmărire punctaj'!$C$4:C117,'Urmărire punctaj'!C117)","v":"0"}]
[null,115,{"$f":"'Urmărire punctaj'!C118&COUNTIF('Urmărire punctaj'!$C$4:C118,'Urmărire punctaj'!C118)","v":"0"}]
[null,116,{"$f":"'Urmărire punctaj'!C119&COUNTIF('Urmărire punctaj'!$C$4:C119,'Urmărire punctaj'!C119)","v":"0"}]
[null,117,{"$f":"'Urmărire punctaj'!C120&COUNTIF('Urmărire punctaj'!$C$4:C120,'Urmărire punctaj'!C120)","v":"0"}]
[null,118,{"$f":"'Urmărire punctaj'!C121&COUNTIF('Urmărire punctaj'!$C$4:C121,'Urmărire punctaj'!C121)","v":"0"}]
[null,119,{"$f":"'Urmărire punctaj'!C122&COUNTIF('Urmărire punctaj'!$C$4:C122,'Urmărire punctaj'!C122)","v":"0"}]
[null,120,{"$f":"'Urmărire punctaj'!C123&COUNTIF('Urmărire punctaj'!$C$4:C123,'Urmărire punctaj'!C123)","v":"0"}]
[null,121,{"$f":"'Urmărire punctaj'!C124&COUNTIF('Urmărire punctaj'!$C$4:C124,'Urmărire punctaj'!C124)","v":"0"}]
[null,122,{"$f":"'Urmărire punctaj'!C125&COUNTIF('Urmărire punctaj'!$C$4:C125,'Urmărire punctaj'!C125)","v":"0"}]
[null,123,{"$f":"'Urmărire punctaj'!C126&COUNTIF('Urmărire punctaj'!$C$4:C126,'Urmărire punctaj'!C126)","v":"0"}]
[null,124,{"$f":"'Urmărire punctaj'!C127&COUNTIF('Urmărire punctaj'!$C$4:C127,'Urmărire punctaj'!C127)","v":"0"}]
[null,125,{"$f":"'Urmărire punctaj'!C128&COUNTIF('Urmărire punctaj'!$C$4:C128,'Urmărire punctaj'!C128)","v":"0"}]
[null,126,{"$f":"'Urmărire punctaj'!C129&COUNTIF('Urmărire punctaj'!$C$4:C129,'Urmărire punctaj'!C129)","v":"0"}]
[null,127,{"$f":"'Urmărire punctaj'!C130&COUNTIF('Urmărire punctaj'!$C$4:C130,'Urmărire punctaj'!C130)","v":"0"}]
[null,128,{"$f":"'Urmărire punctaj'!C131&COUNTIF('Urmărire punctaj'!$C$4:C131,'Urmărire punctaj'!C131)","v":"0"}]
[null,129,{"$f":"'Urmărire punctaj'!C132&COUNTIF('Urmărire punctaj'!$C$4:C132,'Urmărire punctaj'!C132)","v":"0"}]
[null,130,{"$f":"'Urmărire punctaj'!C133&COUNTIF('Urmărire punctaj'!$C$4:C133,'Urmărire punctaj'!C133)","v":"0"}]
[null,131,{"$f":"'Urmărire punctaj'!C134&COUNTIF('Urmărire punctaj'!$C$4:C134,'Urmărire punctaj'!C134)","v":"0"}]
[null,132,{"$f":"'Urmărire punctaj'!C135&COUNTIF('Urmărire punctaj'!$C$4:C135,'Urmărire punctaj'!C135)","v":"0"}]
[null,133,{"$f":"'Urmărire punctaj'!C136&COUNTIF('Urmărire punctaj'!$C$4:C136,'Urmărire punctaj'!C136)","v":"0"}]
[null,134,{"$f":"'Urmărire punctaj'!C137&COUNTIF('Urmărire punctaj'!$C$4:C137,'Urmărire punctaj'!C137)","v":"0"}]
[null,135,{"$f":"'Urmărire punctaj'!C138&COUNTIF('Urmărire punctaj'!$C$4:C138,'Urmărire punctaj'!C138)","v":"0"}]
[null,136,{"$f":"'Urmărire punctaj'!C139&COUNTIF('Urmărire punctaj'!$C$4:C139,'Urmărire punctaj'!C139)","v":"0"}]
[null,137,{"$f":"'Urmărire punctaj'!C140&COUNTIF('Urmărire punctaj'!$C$4:C140,'Urmărire punctaj'!C140)","v":"0"}]
[null,138,{"$f":"'Urmărire punctaj'!C141&COUNTIF('Urmărire punctaj'!$C$4:C141,'Urmărire punctaj'!C141)","v":"0"}]
[null,139,{"$f":"'Urmărire punctaj'!C142&COUNTIF('Urmărire punctaj'!$C$4:C142,'Urmărire punctaj'!C142)","v":"0"}]
[null,140,{"$f":"'Urmărire punctaj'!C143&COUNTIF('Urmărire punctaj'!$C$4:C143,'Urmărire punctaj'!C143)","v":"0"}]
[null,141,{"$f":"'Urmărire punctaj'!C144&COUNTIF('Urmărire punctaj'!$C$4:C144,'Urmărire punctaj'!C144)","v":"0"}]
[null,142,{"$f":"'Urmărire punctaj'!C145&COUNTIF('Urmărire punctaj'!$C$4:C145,'Urmărire punctaj'!C145)","v":"0"}]
[null,143,{"$f":"'Urmărire punctaj'!C146&COUNTIF('Urmărire punctaj'!$C$4:C146,'Urmărire punctaj'!C146)","v":"0"}]
[null,144,{"$f":"'Urmărire punctaj'!C147&COUNTIF('Urmărire punctaj'!$C$4:C147,'Urmărire punctaj'!C147)","v":"0"}]
[null,145,{"$f":"'Urmărire punctaj'!C148&COUNTIF('Urmărire punctaj'!$C$4:C148,'Urmărire punctaj'!C148)","v":"0"}]
[null,146,{"$f":"'Urmărire punctaj'!C149&COUNTIF('Urmărire punctaj'!$C$4:C149,'Urmărire punctaj'!C149)","v":"0"}]
[null,147,{"$f":"'Urmărire punctaj'!C150&COUNTIF('Urmărire punctaj'!$C$4:C150,'Urmărire punctaj'!C150)","v":"0"}]
[null,148,{"$f":"'Urmărire punctaj'!C151&COUNTIF('Urmărire punctaj'!$C$4:C151,'Urmărire punctaj'!C151)","v":"0"}]
[null,149,{"$f":"'Urmărire punctaj'!C152&COUNTIF('Urmărire punctaj'!$C$4:C152,'Urmărire punctaj'!C152)","v":"0"}]
[null,150,{"$f":"'Urmărire punctaj'!C153&COUNTIF('Urmărire punctaj'!$C$4:C153,'Urmărire punctaj'!C153)","v":"0"}]
[null,151,{"$f":"'Urmărire punctaj'!C154&COUNTIF('Urmărire punctaj'!$C$4:C154,'Urmărire punctaj'!C154)","v":"0"}]
[null,152,{"$f":"'Urmărire punctaj'!C155&COUNTIF('Urmărire punctaj'!$C$4:C155,'Urmărire punctaj'!C155)","v":"0"}]
[null,153,{"$f":"'Urmărire punctaj'!C156&COUNTIF('Urmărire punctaj'!$C$4:C156,'Urmărire punctaj'!C156)","v":"0"}]
[null,154,{"$f":"'Urmărire punctaj'!C157&COUNTIF('Urmărire punctaj'!$C$4:C157,'Urmărire punctaj'!C157)","v":"0"}]
[null,155,{"$f":"'Urmărire punctaj'!C158&COUNTIF('Urmărire punctaj'!$C$4:C158,'Urmărire punctaj'!C158)","v":"0"}]
[null,156,{"$f":"'Urmărire punctaj'!C159&COUNTIF('Urmărire punctaj'!$C$4:C159,'Urmărire punctaj'!C159)","v":"0"}]
[null,157,{"$f":"'Urmărire punctaj'!C160&COUNTIF('Urmărire punctaj'!$C$4:C160,'Urmărire punctaj'!C160)","v":"0"}]
[null,158,{"$f":"'Urmărire punctaj'!C161&COUNTIF('Urmărire punctaj'!$C$4:C161,'Urmărire punctaj'!C161)","v":"0"}]
[null,159,{"$f":"'Urmărire punctaj'!C162&COUNTIF('Urmărire punctaj'!$C$4:C162,'Urmărire punctaj'!C162)","v":"0"}]
[null,160,{"$f":"'Urmărire punctaj'!C163&COUNTIF('Urmărire punctaj'!$C$4:C163,'Urmărire punctaj'!C163)","v":"0"}]
[null,161,{"$f":"'Urmărire punctaj'!C164&COUNTIF('Urmărire punctaj'!$C$4:C164,'Urmărire punctaj'!C164)","v":"0"}]
[null,162,{"$f":"'Urmărire punctaj'!C165&COUNTIF('Urmărire punctaj'!$C$4:C165,'Urmărire punctaj'!C165)","v":"0"}]
[null,163,{"$f":"'Urmărire punctaj'!C166&COUNTIF('Urmărire punctaj'!$C$4:C166,'Urmărire punctaj'!C166)","v":"0"}]
[null,164,{"$f":"'Urmărire punctaj'!C167&COUNTIF('Urmărire punctaj'!$C$4:C167,'Urmărire punctaj'!C167)","v":"0"}]
[null,165,{"$f":"'Urmărire punctaj'!C168&COUNTIF('Urmărire punctaj'!$C$4:C168,'Urmărire punctaj'!C168)","v":"0"}]
[null,166,{"$f":"'Urmărire punctaj'!C169&COUNTIF('Urmărire punctaj'!$C$4:C169,'Urmărire punctaj'!C169)","v":"0"}]
[null,167,{"$f":"'Urmărire punctaj'!C170&COUNTIF('Urmărire punctaj'!$C$4:C170,'Urmărire punctaj'!C170)","v":"0"}]
[null,168,{"$f":"'Urmărire punctaj'!C171&COUNTIF('Urmărire punctaj'!$C$4:C171,'Urmărire punctaj'!C171)","v":"0"}]
[null,169,{"$f":"'Urmărire punctaj'!C172&COUNTIF('Urmărire punctaj'!$C$4:C172,'Urmărire punctaj'!C172)","v":"0"}]
[null,170,{"$f":"'Urmărire punctaj'!C173&COUNTIF('Urmărire punctaj'!$C$4:C173,'Urmărire punctaj'!C173)","v":"0"}]
[null,171,{"$f":"'Urmărire punctaj'!C174&COUNTIF('Urmărire punctaj'!$C$4:C174,'Urmărire punctaj'!C174)","v":"0"}]
[null,172,{"$f":"'Urmărire punctaj'!C175&COUNTIF('Urmărire punctaj'!$C$4:C175,'Urmărire punctaj'!C175)","v":"0"}]
[null,173,{"$f":"'Urmărire punctaj'!C176&COUNTIF('Urmărire punctaj'!$C$4:C176,'Urmărire punctaj'!C176)","v":"0"}]
[null,174,{"$f":"'Urmărire punctaj'!C177&COUNTIF('Urmărire punctaj'!$C$4:C177,'Urmărire punctaj'!C177)","v":"0"}]
[null,175,{"$f":"'Urmărire punctaj'!C178&COUNTIF('Urmărire punctaj'!$C$4:C178,'Urmărire punctaj'!C178)","v":"0"}]
[null,176,{"$f":"'Urmărire punctaj'!C179&COUNTIF('Urmărire punctaj'!$C$4:C179,'Urmărire punctaj'!C179)","v":"0"}]
[null,177,{"$f":"'Urmărire punctaj'!C180&COUNTIF('Urmărire punctaj'!$C$4:C180,'Urmărire punctaj'!C180)","v":"0"}]
[null,178,{"$f":"'Urmărire punctaj'!C181&COUNTIF('Urmărire punctaj'!$C$4:C181,'Urmărire punctaj'!C181)","v":"0"}]
[null,179,{"$f":"'Urmărire punctaj'!C182&COUNTIF('Urmărire punctaj'!$C$4:C182,'Urmărire punctaj'!C182)","v":"0"}]
[null,180,{"$f":"'Urmărire punctaj'!C183&COUNTIF('Urmărire punctaj'!$C$4:C183,'Urmărire punctaj'!C183)","v":"0"}]
[null,181,{"$f":"'Urmărire punctaj'!C184&COUNTIF('Urmărire punctaj'!$C$4:C184,'Urmărire punctaj'!C184)","v":"0"}]
[null,182,{"$f":"'Urmărire punctaj'!C185&COUNTIF('Urmărire punctaj'!$C$4:C185,'Urmărire punctaj'!C185)","v":"0"}]
[null,183,{"$f":"'Urmărire punctaj'!C186&COUNTIF('Urmărire punctaj'!$C$4:C186,'Urmărire punctaj'!C186)","v":"0"}]
[null,184,{"$f":"'Urmărire punctaj'!C187&COUNTIF('Urmărire punctaj'!$C$4:C187,'Urmărire punctaj'!C187)","v":"0"}]
[null,185,{"$f":"'Urmărire punctaj'!C188&COUNTIF('Urmărire punctaj'!$C$4:C188,'Urmărire punctaj'!C188)","v":"0"}]
[null,186,{"$f":"'Urmărire punctaj'!C189&COUNTIF('Urmărire punctaj'!$C$4:C189,'Urmărire punctaj'!C189)","v":"0"}]
[null,187,{"$f":"'Urmărire punctaj'!C190&COUNTIF('Urmărire punctaj'!$C$4:C190,'Urmărire punctaj'!C190)","v":"0"}]
[null,188,{"$f":"'Urmărire punctaj'!C191&COUNTIF('Urmărire punctaj'!$C$4:C191,'Urmărire punctaj'!C191)","v":"0"}]
[null,189,{"$f":"'Urmărire punctaj'!C192&COUNTIF('Urmărire punctaj'!$C$4:C192,'Urmărire punctaj'!C192)","v":"0"}]
[null,190,{"$f":"'Urmărire punctaj'!C193&COUNTIF('Urmărire punctaj'!$C$4:C193,'Urmărire punctaj'!C193)","v":"0"}]
[null,191,{"$f":"'Urmărire punctaj'!C194&COUNTIF('Urmărire punctaj'!$C$4:C194,'Urmărire punctaj'!C194)","v":"0"}]
[null,192,{"$f":"'Urmărire punctaj'!C195&COUNTIF('Urmărire punctaj'!$C$4:C195,'Urmărire punctaj'!C195)","v":"0"}]
[null,193,{"$f":"'Urmărire punctaj'!C196&COUNTIF('Urmărire punctaj'!$C$4:C196,'Urmărire punctaj'!C196)","v":"0"}]
[null,194,{"$f":"'Urmărire punctaj'!C197&COUNTIF('Urmărire punctaj'!$C$4:C197,'Urmărire punctaj'!C197)","v":"0"}]
[null,195,{"$f":"'Urmărire punctaj'!C198&COUNTIF('Urmărire punctaj'!$C$4:C198,'Urmărire punctaj'!C198)","v":"0"}]
[null,196,{"$f":"'Urmărire punctaj'!C199&COUNTIF('Urmărire punctaj'!$C$4:C199,'Urmărire punctaj'!C199)","v":"0"}]
[null,197,{"$f":"'Urmărire punctaj'!C200&COUNTIF('Urmărire punctaj'!$C$4:C200,'Urmărire punctaj'!C200)","v":"0"}]
[null,198,{"$f":"'Urmărire punctaj'!C201&COUNTIF('Urmărire punctaj'!$C$4:C201,'Urmărire punctaj'!C201)","v":"0"}]
[null,199,{"$f":"'Urmărire punctaj'!C202&COUNTIF('Urmărire punctaj'!$C$4:C202,'Urmărire punctaj'!C202)","v":"0"}]
[null,200,{"$f":"'Urmărire punctaj'!C203&COUNTIF('Urmărire punctaj'!$C$4:C203,'Urmărire punctaj'!C203)","v":"0"}]
[null,201,{"$f":"'Urmărire punctaj'!C204&COUNTIF('Urmărire punctaj'!$C$4:C204,'Urmărire punctaj'!C204)","v":"0"}]
[null,202,{"$f":"'Urmărire punctaj'!C205&COUNTIF('Urmărire punctaj'!$C$4:C205,'Urmărire punctaj'!C205)","v":"0"}]
[null,203,{"$f":"'Urmărire punctaj'!C206&COUNTIF('Urmărire punctaj'!$C$4:C206,'Urmărire punctaj'!C206)","v":"0"}]
[null,204,{"$f":"'Urmărire punctaj'!C207&COUNTIF('Urmărire punctaj'!$C$4:C207,'Urmărire punctaj'!C207)","v":"0"}]
[null,205,{"$f":"'Urmărire punctaj'!C208&COUNTIF('Urmărire punctaj'!$C$4:C208,'Urmărire punctaj'!C208)","v":"0"}]
[null,206,{"$f":"'Urmărire punctaj'!C209&COUNTIF('Urmărire punctaj'!$C$4:C209,'Urmărire punctaj'!C209)","v":"0"}]
[null,207,{"$f":"'Urmărire punctaj'!C210&COUNTIF('Urmărire punctaj'!$C$4:C210,'Urmărire punctaj'!C210)","v":"0"}]
[null,208,{"$f":"'Urmărire punctaj'!C211&COUNTIF('Urmărire punctaj'!$C$4:C211,'Urmărire punctaj'!C211)","v":"0"}]
[null,209,{"$f":"'Urmărire punctaj'!C212&COUNTIF('Urmărire punctaj'!$C$4:C212,'Urmărire punctaj'!C212)","v":"0"}]
[null,210,{"$f":"'Urmărire punctaj'!C213&COUNTIF('Urmărire punctaj'!$C$4:C213,'Urmărire punctaj'!C213)","v":"0"}]
[null,211,{"$f":"'Urmărire punctaj'!C214&COUNTIF('Urmărire punctaj'!$C$4:C214,'Urmărire punctaj'!C214)","v":"0"}]
[null,212,{"$f":"'Urmărire punctaj'!C215&COUNTIF('Urmărire punctaj'!$C$4:C215,'Urmărire punctaj'!C215)","v":"0"}]
[null,213,{"$f":"'Urmărire punctaj'!C216&COUNTIF('Urmărire punctaj'!$C$4:C216,'Urmărire punctaj'!C216)","v":"0"}]
[null,214,{"$f":"'Urmărire punctaj'!C217&COUNTIF('Urmărire punctaj'!$C$4:C217,'Urmărire punctaj'!C217)","v":"0"}]
[null,215,{"$f":"'Urmărire punctaj'!C218&COUNTIF('Urmărire punctaj'!$C$4:C218,'Urmărire punctaj'!C218)","v":"0"}]
[null,216,{"$f":"'Urmărire punctaj'!C219&COUNTIF('Urmărire punctaj'!$C$4:C219,'Urmărire punctaj'!C219)","v":"0"}]
[null,217,{"$f":"'Urmărire punctaj'!C220&COUNTIF('Urmărire punctaj'!$C$4:C220,'Urmărire punctaj'!C220)","v":"0"}]
[null,218,{"$f":"'Urmărire punctaj'!C221&COUNTIF('Urmărire punctaj'!$C$4:C221,'Urmărire punctaj'!C221)","v":"0"}]
[null,219,{"$f":"'Urmărire punctaj'!C222&COUNTIF('Urmărire punctaj'!$C$4:C222,'Urmărire punctaj'!C222)","v":"0"}]
[null,220,{"$f":"'Urmărire punctaj'!C223&COUNTIF('Urmărire punctaj'!$C$4:C223,'Urmărire punctaj'!C223)","v":"0"}]
[null,221,{"$f":"'Urmărire punctaj'!C224&COUNTIF('Urmărire punctaj'!$C$4:C224,'Urmărire punctaj'!C224)","v":"0"}]
[null,222,{"$f":"'Urmărire punctaj'!C225&COUNTIF('Urmărire punctaj'!$C$4:C225,'Urmărire punctaj'!C225)","v":"0"}]
[null,223,{"$f":"'Urmărire punctaj'!C226&COUNTIF('Urmărire punctaj'!$C$4:C226,'Urmărire punctaj'!C226)","v":"0"}]
[null,224,{"$f":"'Urmărire punctaj'!C227&COUNTIF('Urmărire punctaj'!$C$4:C227,'Urmărire punctaj'!C227)","v":"0"}]
[null,225,{"$f":"'Urmărire punctaj'!C228&COUNTIF('Urmărire punctaj'!$C$4:C228,'Urmărire punctaj'!C228)","v":"0"}]
[null,226,{"$f":"'Urmărire punctaj'!C229&COUNTIF('Urmărire punctaj'!$C$4:C229,'Urmărire punctaj'!C229)","v":"0"}]
[null,227,{"$f":"'Urmărire punctaj'!C230&COUNTIF('Urmărire punctaj'!$C$4:C230,'Urmărire punctaj'!C230)","v":"0"}]
[null,228,{"$f":"'Urmărire punctaj'!C231&COUNTIF('Urmărire punctaj'!$C$4:C231,'Urmărire punctaj'!C231)","v":"0"}]
[null,229,{"$f":"'Urmărire punctaj'!C232&COUNTIF('Urmărire punctaj'!$C$4:C232,'Urmărire punctaj'!C232)","v":"0"}]
[null,230,{"$f":"'Urmărire punctaj'!C233&COUNTIF('Urmărire punctaj'!$C$4:C233,'Urmărire punctaj'!C233)","v":"0"}]
[null,231,{"$f":"'Urmărire punctaj'!C234&COUNTIF('Urmărire punctaj'!$C$4:C234,'Urmărire punctaj'!C234)","v":"0"}]
[null,232,{"$f":"'Urmărire punctaj'!C235&COUNTIF('Urmărire punctaj'!$C$4:C235,'Urmărire punctaj'!C235)","v":"0"}]
[null,233,{"$f":"'Urmărire punctaj'!C236&COUNTIF('Urmărire punctaj'!$C$4:C236,'Urmărire punctaj'!C236)","v":"0"}]
[null,234,{"$f":"'Urmărire punctaj'!C237&COUNTIF('Urmărire punctaj'!$C$4:C237,'Urmărire punctaj'!C237)","v":"0"}]
[null,235,{"$f":"'Urmărire punctaj'!C238&COUNTIF('Urmărire punctaj'!$C$4:C238,'Urmărire punctaj'!C238)","v":"0"}]
[null,236,{"$f":"'Urmărire punctaj'!C239&COUNTIF('Urmărire punctaj'!$C$4:C239,'Urmărire punctaj'!C239)","v":"0"}]
[null,237,{"$f":"'Urmărire punctaj'!C240&COUNTIF('Urmărire punctaj'!$C$4:C240,'Urmărire punctaj'!C240)","v":"0"}]
[null,238,{"$f":"'Urmărire punctaj'!C241&COUNTIF('Urmărire punctaj'!$C$4:C241,'Urmărire punctaj'!C241)","v":"0"}]
[null,239,{"$f":"'Urmărire punctaj'!C242&COUNTIF('Urmărire punctaj'!$C$4:C242,'Urmărire punctaj'!C242)","v":"0"}]
[null,240,{"$f":"'Urmărire punctaj'!C243&COUNTIF('Urmărire punctaj'!$C$4:C243,'Urmărire punctaj'!C243)","v":"0"}]
[null,241,{"$f":"'Urmărire punctaj'!C244&COUNTIF('Urmărire punctaj'!$C$4:C244,'Urmărire punctaj'!C244)","v":"0"}]
[null,242,{"$f":"'Urmărire punctaj'!C245&COUNTIF('Urmărire punctaj'!$C$4:C245,'Urmărire punctaj'!C245)","v":"0"}]
[null,243,{"$f":"'Urmărire punctaj'!C246&COUNTIF('Urmărire punctaj'!$C$4:C246,'Urmărire punctaj'!C246)","v":"0"}]
[null,244,{"$f":"'Urmărire punctaj'!C247&COUNTIF('Urmărire punctaj'!$C$4:C247,'Urmărire punctaj'!C247)","v":"0"}]
[null,245,{"$f":"'Urmărire punctaj'!C248&COUNTIF('Urmărire punctaj'!$C$4:C248,'Urmărire punctaj'!C248)","v":"0"}]
[null,246,{"$f":"'Urmărire punctaj'!C249&COUNTIF('Urmărire punctaj'!$C$4:C249,'Urmărire punctaj'!C249)","v":"0"}]
[null,247,{"$f":"'Urmărire punctaj'!C250&COUNTIF('Urmărire punctaj'!$C$4:C250,'Urmărire punctaj'!C250)","v":"0"}]
[null,248,{"$f":"'Urmărire punctaj'!C251&COUNTIF('Urmărire punctaj'!$C$4:C251,'Urmărire punctaj'!C251)","v":"0"}]
[null,249,{"$f":"'Urmărire punctaj'!C252&COUNTIF('Urmărire punctaj'!$C$4:C252,'Urmărire punctaj'!C252)","v":"0"}]
[null,250,{"$f":"'Urmărire punctaj'!C253&COUNTIF('Urmărire punctaj'!$C$4:C253,'Urmărire punctaj'!C253)","v":"0"}]
[null,251,{"$f":"'Urmărire punctaj'!C254&COUNTIF('Urmărire punctaj'!$C$4:C254,'Urmărire punctaj'!C254)","v":"0"}]
[null,252,{"$f":"'Urmărire punctaj'!C255&COUNTIF('Urmărire punctaj'!$C$4:C255,'Urmărire punctaj'!C255)","v":"0"}]
[null,253,{"$f":"'Urmărire punctaj'!C256&COUNTIF('Urmărire punctaj'!$C$4:C256,'Urmărire punctaj'!C256)","v":"0"}]
[null,254,{"$f":"'Urmărire punctaj'!C257&COUNTIF('Urmărire punctaj'!$C$4:C257,'Urmărire punctaj'!C257)","v":"0"}]
[null,255,{"$f":"'Urmărire punctaj'!C258&COUNTIF('Urmărire punctaj'!$C$4:C258,'Urmărire punctaj'!C258)","v":"0"}]
[null,256,{"$f":"'Urmărire punctaj'!C259&COUNTIF('Urmărire punctaj'!$C$4:C259,'Urmărire punctaj'!C259)","v":"0"}]
[null,257,{"$f":"'Urmărire punctaj'!C260&COUNTIF('Urmărire punctaj'!$C$4:C260,'Urmărire punctaj'!C260)","v":"0"}]
[null,258,{"$f":"'Urmărire punctaj'!C261&COUNTIF('Urmărire punctaj'!$C$4:C261,'Urmărire punctaj'!C261)","v":"0"}]
[null,259,{"$f":"'Urmărire punctaj'!C262&COUNTIF('Urmărire punctaj'!$C$4:C262,'Urmărire punctaj'!C262)","v":"0"}]
[null,260,{"$f":"'Urmărire punctaj'!C263&COUNTIF('Urmărire punctaj'!$C$4:C263,'Urmărire punctaj'!C263)","v":"0"}]
[null,261,{"$f":"'Urmărire punctaj'!C264&COUNTIF('Urmărire punctaj'!$C$4:C264,'Urmărire punctaj'!C264)","v":"0"}]
[null,262,{"$f":"'Urmărire punctaj'!C265&COUNTIF('Urmărire punctaj'!$C$4:C265,'Urmărire punctaj'!C265)","v":"0"}]
[null,263,{"$f":"'Urmărire punctaj'!C266&COUNTIF('Urmărire punctaj'!$C$4:C266,'Urmărire punctaj'!C266)","v":"0"}]
[null,264,{"$f":"'Urmărire punctaj'!C267&COUNTIF('Urmărire punctaj'!$C$4:C267,'Urmărire punctaj'!C267)","v":"0"}]
[null,265,{"$f":"'Urmărire punctaj'!C268&COUNTIF('Urmărire punctaj'!$C$4:C268,'Urmărire punctaj'!C268)","v":"0"}]
[null,266,{"$f":"'Urmărire punctaj'!C269&COUNTIF('Urmărire punctaj'!$C$4:C269,'Urmărire punctaj'!C269)","v":"0"}]
[null,267,{"$f":"'Urmărire punctaj'!C270&COUNTIF('Urmărire punctaj'!$C$4:C270,'Urmărire punctaj'!C270)","v":"0"}]
[null,268,{"$f":"'Urmărire punctaj'!C271&COUNTIF('Urmărire punctaj'!$C$4:C271,'Urmărire punctaj'!C271)","v":"0"}]
[null,269,{"$f":"'Urmărire punctaj'!C272&COUNTIF('Urmărire punctaj'!$C$4:C272,'Urmărire punctaj'!C272)","v":"0"}]
[null,270,{"$f":"'Urmărire punctaj'!C273&COUNTIF('Urmărire punctaj'!$C$4:C273,'Urmărire punctaj'!C273)","v":"0"}]
[null,271,{"$f":"'Urmărire punctaj'!C274&COUNTIF('Urmărire punctaj'!$C$4:C274,'Urmărire punctaj'!C274)","v":"0"}]
[null,272,{"$f":"'Urmărire punctaj'!C275&COUNTIF('Urmărire punctaj'!$C$4:C275,'Urmărire punctaj'!C275)","v":"0"}]
[null,273,{"$f":"'Urmărire punctaj'!C276&COUNTIF('Urmărire punctaj'!$C$4:C276,'Urmărire punctaj'!C276)","v":"0"}]
[null,274,{"$f":"'Urmărire punctaj'!C277&COUNTIF('Urmărire punctaj'!$C$4:C277,'Urmărire punctaj'!C277)","v":"0"}]
[null,275,{"$f":"'Urmărire punctaj'!C278&COUNTIF('Urmărire punctaj'!$C$4:C278,'Urmărire punctaj'!C278)","v":"0"}]
[null,276,{"$f":"'Urmărire punctaj'!C279&COUNTIF('Urmărire punctaj'!$C$4:C279,'Urmărire punctaj'!C279)","v":"0"}]
[null,277,{"$f":"'Urmărire punctaj'!C280&COUNTIF('Urmărire punctaj'!$C$4:C280,'Urmărire punctaj'!C280)","v":"0"}]
[null,278,{"$f":"'Urmărire punctaj'!C281&COUNTIF('Urmărire punctaj'!$C$4:C281,'Urmărire punctaj'!C281)","v":"0"}]
[null,279,{"$f":"'Urmărire punctaj'!C282&COUNTIF('Urmărire punctaj'!$C$4:C282,'Urmărire punctaj'!C282)","v":"0"}]
[null,280,{"$f":"'Urmărire punctaj'!C283&COUNTIF('Urmărire punctaj'!$C$4:C283,'Urmărire punctaj'!C283)","v":"0"}]
[null,281,{"$f":"'Urmărire punctaj'!C284&COUNTIF('Urmărire punctaj'!$C$4:C284,'Urmărire punctaj'!C284)","v":"0"}]
[null,282,{"$f":"'Urmărire punctaj'!C285&COUNTIF('Urmărire punctaj'!$C$4:C285,'Urmărire punctaj'!C285)","v":"0"}]
[null,283,{"$f":"'Urmărire punctaj'!C286&COUNTIF('Urmărire punctaj'!$C$4:C286,'Urmărire punctaj'!C286)","v":"0"}]
[null,284,{"$f":"'Urmărire punctaj'!C287&COUNTIF('Urmărire punctaj'!$C$4:C287,'Urmărire punctaj'!C287)","v":"0"}]
[null,285,{"$f":"'Urmărire punctaj'!C288&COUNTIF('Urmărire punctaj'!$C$4:C288,'Urmărire punctaj'!C288)","v":"0"}]
[null,286,{"$f":"'Urmărire punctaj'!C289&COUNTIF('Urmărire punctaj'!$C$4:C289,'Urmărire punctaj'!C289)","v":"0"}]
[null,287,{"$f":"'Urmărire punctaj'!C290&COUNTIF('Urmărire punctaj'!$C$4:C290,'Urmărire punctaj'!C290)","v":"0"}]
[null,288,{"$f":"'Urmărire punctaj'!C291&COUNTIF('Urmărire punctaj'!$C$4:C291,'Urmărire punctaj'!C291)","v":"0"}]
[null,289,{"$f":"'Urmărire punctaj'!C292&COUNTIF('Urmărire punctaj'!$C$4:C292,'Urmărire punctaj'!C292)","v":"0"}]
[null,290,{"$f":"'Urmărire punctaj'!C293&COUNTIF('Urmărire punctaj'!$C$4:C293,'Urmărire punctaj'!C293)","v":"0"}]
[null,291,{"$f":"'Urmărire punctaj'!C294&COUNTIF('Urmărire punctaj'!$C$4:C294,'Urmărire punctaj'!C294)","v":"0"}]
[null,292,{"$f":"'Urmărire punctaj'!C295&COUNTIF('Urmărire punctaj'!$C$4:C295,'Urmărire punctaj'!C295)","v":"0"}]
[null,293,{"$f":"'Urmărire punctaj'!C296&COUNTIF('Urmărire punctaj'!$C$4:C296,'Urmărire punctaj'!C296)","v":"0"}]
[null,294,{"$f":"'Urmărire punctaj'!C297&COUNTIF('Urmărire punctaj'!$C$4:C297,'Urmărire punctaj'!C297)","v":"0"}]
[null,295,{"$f":"'Urmărire punctaj'!C298&COUNTIF('Urmărire punctaj'!$C$4:C298,'Urmărire punctaj'!C298)","v":"0"}]
[null,296,{"$f":"'Urmărire punctaj'!C299&COUNTIF('Urmărire punctaj'!$C$4:C299,'Urmărire punctaj'!C299)","v":"0"}]
[null,297,{"$f":"'Urmărire punctaj'!C300&COUNTIF('Urmărire punctaj'!$C$4:C300,'Urmărire punctaj'!C300)","v":"0"}]
[null,298,{"$f":"'Urmărire punctaj'!C301&COUNTIF('Urmărire punctaj'!$C$4:C301,'Urmărire punctaj'!C301)","v":"0"}]
[null,299,{"$f":"'Urmărire punctaj'!C302&COUNTIF('Urmărire punctaj'!$C$4:C302,'Urmărire punctaj'!C302)","v":"0"}]
[null,300,{"$f":"'Urmărire punctaj'!C303&COUNTIF('Urmărire punctaj'!$C$4:C303,'Urmărire punctaj'!C303)","v":"0"}]
[null,301,{"$f":"'Urmărire punctaj'!C304&COUNTIF('Urmărire punctaj'!$C$4:C304,'Urmărire punctaj'!C304)","v":"0"}]
[null,302,{"$f":"'Urmărire punctaj'!C305&COUNTIF('Urmărire punctaj'!$C$4:C305,'Urmărire punctaj'!C305)","v":"0"}]
[null,303,{"$f":"'Urmărire punctaj'!C306&COUNTIF('Urmărire punctaj'!$C$4:C306,'Urmărire punctaj'!C306)","v":"0"}]
[null,304,{"$f":"'Urmărire punctaj'!C307&COUNTIF('Urmărire punctaj'!$C$4:C307,'Urmărire punctaj'!C307)","v":"0"}]
[null,305,{"$f":"'Urmărire punctaj'!C308&COUNTIF('Urmărire punctaj'!$C$4:C308,'Urmărire punctaj'!C308)","v":"0"}]
[null,306,{"$f":"'Urmărire punctaj'!C309&COUNTIF('Urmărire punctaj'!$C$4:C309,'Urmărire punctaj'!C309)","v":"0"}]
[null,307,{"$f":"'Urmărire punctaj'!C310&COUNTIF('Urmărire punctaj'!$C$4:C310,'Urmărire punctaj'!C310)","v":"0"}]
[null,308,{"$f":"'Urmărire punctaj'!C311&COUNTIF('Urmărire punctaj'!$C$4:C311,'Urmărire punctaj'!C311)","v":"0"}]
[null,309,{"$f":"'Urmărire punctaj'!C312&COUNTIF('Urmărire punctaj'!$C$4:C312,'Urmărire punctaj'!C312)","v":"0"}]
[null,310,{"$f":"'Urmărire punctaj'!C313&COUNTIF('Urmărire punctaj'!$C$4:C313,'Urmărire punctaj'!C313)","v":"0"}]
[null,311,{"$f":"'Urmărire punctaj'!C314&COUNTIF('Urmărire punctaj'!$C$4:C314,'Urmărire punctaj'!C314)","v":"0"}]
[null,312,{"$f":"'Urmărire punctaj'!C315&COUNTIF('Urmărire punctaj'!$C$4:C315,'Urmărire punctaj'!C315)","v":"0"}]
[null,313,{"$f":"'Urmărire punctaj'!C316&COUNTIF('Urmărire punctaj'!$C$4:C316,'Urmărire punctaj'!C316)","v":"0"}]
[null,314,{"$f":"'Urmărire punctaj'!C317&COUNTIF('Urmărire punctaj'!$C$4:C317,'Urmărire punctaj'!C317)","v":"0"}]
[null,315,{"$f":"'Urmărire punctaj'!C318&COUNTIF('Urmărire punctaj'!$C$4:C318,'Urmărire punctaj'!C318)","v":"0"}]
[null,316,{"$f":"'Urmărire punctaj'!C319&COUNTIF('Urmărire punctaj'!$C$4:C319,'Urmărire punctaj'!C319)","v":"0"}]
[null,317,{"$f":"'Urmărire punctaj'!C320&COUNTIF('Urmărire punctaj'!$C$4:C320,'Urmărire punctaj'!C320)","v":"0"}]
[null,318,{"$f":"'Urmărire punctaj'!C321&COUNTIF('Urmărire punctaj'!$C$4:C321,'Urmărire punctaj'!C321)","v":"0"}]
[null,319,{"$f":"'Urmărire punctaj'!C322&COUNTIF('Urmărire punctaj'!$C$4:C322,'Urmărire punctaj'!C322)","v":"0"}]
[null,320,{"$f":"'Urmărire punctaj'!C323&COUNTIF('Urmărire punctaj'!$C$4:C323,'Urmărire punctaj'!C323)","v":"0"}]
[null,321,{"$f":"'Urmărire punctaj'!C324&COUNTIF('Urmărire punctaj'!$C$4:C324,'Urmărire punctaj'!C324)","v":"0"}]
[null,322,{"$f":"'Urmărire punctaj'!C325&COUNTIF('Urmărire punctaj'!$C$4:C325,'Urmărire punctaj'!C325)","v":"0"}]
[null,323,{"$f":"'Urmărire punctaj'!C326&COUNTIF('Urmărire punctaj'!$C$4:C326,'Urmărire punctaj'!C326)","v":"0"}]
[null,324,{"$f":"'Urmărire punctaj'!C327&COUNTIF('Urmărire punctaj'!$C$4:C327,'Urmărire punctaj'!C327)","v":"0"}]
[null,325,{"$f":"'Urmărire punctaj'!C328&COUNTIF('Urmărire punctaj'!$C$4:C328,'Urmărire punctaj'!C328)","v":"0"}]
[null,326,{"$f":"'Urmărire punctaj'!C329&COUNTIF('Urmărire punctaj'!$C$4:C329,'Urmărire punctaj'!C329)","v":"0"}]
[null,327,{"$f":"'Urmărire punctaj'!C330&COUNTIF('Urmărire punctaj'!$C$4:C330,'Urmărire punctaj'!C330)","v":"0"}]
[null,328,{"$f":"'Urmărire punctaj'!C331&COUNTIF('Urmărire punctaj'!$C$4:C331,'Urmărire punctaj'!C331)","v":"0"}]
[null,329,{"$f":"'Urmărire punctaj'!C332&COUNTIF('Urmărire punctaj'!$C$4:C332,'Urmărire punctaj'!C332)","v":"0"}]
[null,330,{"$f":"'Urmărire punctaj'!C333&COUNTIF('Urmărire punctaj'!$C$4:C333,'Urmărire punctaj'!C333)","v":"0"}]
[null,331,{"$f":"'Urmărire punctaj'!C334&COUNTIF('Urmărire punctaj'!$C$4:C334,'Urmărire punctaj'!C334)","v":"0"}]
[null,332,{"$f":"'Urmărire punctaj'!C335&COUNTIF('Urmărire punctaj'!$C$4:C335,'Urmărire punctaj'!C335)","v":"0"}]
[null,333,{"$f":"'Urmărire punctaj'!C336&COUNTIF('Urmărire punctaj'!$C$4:C336,'Urmărire punctaj'!C336)","v":"0"}]
[null,334,{"$f":"'Urmărire punctaj'!C337&COUNTIF('Urmărire punctaj'!$C$4:C337,'Urmărire punctaj'!C337)","v":"0"}]
[null,335,{"$f":"'Urmărire punctaj'!C338&COUNTIF('Urmărire punctaj'!$C$4:C338,'Urmărire punctaj'!C338)","v":"0"}]
[null,336,{"$f":"'Urmărire punctaj'!C339&COUNTIF('Urmărire punctaj'!$C$4:C339,'Urmărire punctaj'!C339)","v":"0"}]
[null,337,{"$f":"'Urmărire punctaj'!C340&COUNTIF('Urmărire punctaj'!$C$4:C340,'Urmărire punctaj'!C340)","v":"0"}]
[null,338,{"$f":"'Urmărire punctaj'!C341&COUNTIF('Urmărire punctaj'!$C$4:C341,'Urmărire punctaj'!C341)","v":"0"}]
[null,339,{"$f":"'Urmărire punctaj'!C342&COUNTIF('Urmărire punctaj'!$C$4:C342,'Urmărire punctaj'!C342)","v":"0"}]
[null,340,{"$f":"'Urmărire punctaj'!C343&COUNTIF('Urmărire punctaj'!$C$4:C343,'Urmărire punctaj'!C343)","v":"0"}]
[null,341,{"$f":"'Urmărire punctaj'!C344&COUNTIF('Urmărire punctaj'!$C$4:C344,'Urmărire punctaj'!C344)","v":"0"}]
[null,342,{"$f":"'Urmărire punctaj'!C345&COUNTIF('Urmărire punctaj'!$C$4:C345,'Urmărire punctaj'!C345)","v":"0"}]
[null,343,{"$f":"'Urmărire punctaj'!C346&COUNTIF('Urmărire punctaj'!$C$4:C346,'Urmărire punctaj'!C346)","v":"0"}]
[null,344,{"$f":"'Urmărire punctaj'!C347&COUNTIF('Urmărire punctaj'!$C$4:C347,'Urmărire punctaj'!C347)","v":"0"}]
[null,345,{"$f":"'Urmărire punctaj'!C348&COUNTIF('Urmărire punctaj'!$C$4:C348,'Urmărire punctaj'!C348)","v":"0"}]
[null,346,{"$f":"'Urmărire punctaj'!C349&COUNTIF('Urmărire punctaj'!$C$4:C349,'Urmărire punctaj'!C349)","v":"0"}]
[null,347,{"$f":"'Urmărire punctaj'!C350&COUNTIF('Urmărire punctaj'!$C$4:C350,'Urmărire punctaj'!C350)","v":"0"}]
[null,348,{"$f":"'Urmărire punctaj'!C351&COUNTIF('Urmărire punctaj'!$C$4:C351,'Urmărire punctaj'!C351)","v":"0"}]
[null,349,{"$f":"'Urmărire punctaj'!C352&COUNTIF('Urmărire punctaj'!$C$4:C352,'Urmărire punctaj'!C352)","v":"0"}]
[null,350,{"$f":"'Urmărire punctaj'!C353&COUNTIF('Urmărire punctaj'!$C$4:C353,'Urmărire punctaj'!C353)","v":"0"}]
[null,351,{"$f":"'Urmărire punctaj'!C354&COUNTIF('Urmărire punctaj'!$C$4:C354,'Urmărire punctaj'!C354)","v":"0"}]
[null,352,{"$f":"'Urmărire punctaj'!C355&COUNTIF('Urmărire punctaj'!$C$4:C355,'Urmărire punctaj'!C355)","v":"0"}]
[null,353,{"$f":"'Urmărire punctaj'!C356&COUNTIF('Urmărire punctaj'!$C$4:C356,'Urmărire punctaj'!C356)","v":"0"}]
[null,354,{"$f":"'Urmărire punctaj'!C357&COUNTIF('Urmărire punctaj'!$C$4:C357,'Urmărire punctaj'!C357)","v":"0"}]
[null,355,{"$f":"'Urmărire punctaj'!C358&COUNTIF('Urmărire punctaj'!$C$4:C358,'Urmărire punctaj'!C358)","v":"0"}]
[null,356,{"$f":"'Urmărire punctaj'!C359&COUNTIF('Urmărire punctaj'!$C$4:C359,'Urmărire punctaj'!C359)","v":"0"}]
[null,357,{"$f":"'Urmărire punctaj'!C360&COUNTIF('Urmărire punctaj'!$C$4:C360,'Urmărire punctaj'!C360)","v":"0"}]
[null,358,{"$f":"'Urmărire punctaj'!C361&COUNTIF('Urmărire punctaj'!$C$4:C361,'Urmărire punctaj'!C361)","v":"0"}]
[null,359,{"$f":"'Urmărire punctaj'!C362&COUNTIF('Urmărire punctaj'!$C$4:C362,'Urmărire punctaj'!C362)","v":"0"}]
[null,360,{"$f":"'Urmărire punctaj'!C363&COUNTIF('Urmărire punctaj'!$C$4:C363,'Urmărire punctaj'!C363)","v":"0"}]
[null,361,{"$f":"'Urmărire punctaj'!C364&COUNTIF('Urmărire punctaj'!$C$4:C364,'Urmărire punctaj'!C364)","v":"0"}]
[null,362,{"$f":"'Urmărire punctaj'!C365&COUNTIF('Urmărire punctaj'!$C$4:C365,'Urmărire punctaj'!C365)","v":"0"}]
[null,363,{"$f":"'Urmărire punctaj'!C366&COUNTIF('Urmărire punctaj'!$C$4:C366,'Urmărire punctaj'!C366)","v":"0"}]
[null,364,{"$f":"'Urmărire punctaj'!C367&COUNTIF('Urmărire punctaj'!$C$4:C367,'Urmărire punctaj'!C367)","v":"0"}]
[null,365,{"$f":"'Urmărire punctaj'!C368&COUNTIF('Urmărire punctaj'!$C$4:C368,'Urmărire punctaj'!C368)","v":"0"}]
[null,366,{"$f":"'Urmărire punctaj'!C369&COUNTIF('Urmărire punctaj'!$C$4:C369,'Urmărire punctaj'!C369)","v":"0"}]
[null,367,{"$f":"'Urmărire punctaj'!C370&COUNTIF('Urmărire punctaj'!$C$4:C370,'Urmărire punctaj'!C370)","v":"0"}]
[null,368,{"$f":"'Urmărire punctaj'!C371&COUNTIF('Urmărire punctaj'!$C$4:C371,'Urmărire punctaj'!C371)","v":"0"}]
[null,369,{"$f":"'Urmărire punctaj'!C372&COUNTIF('Urmărire punctaj'!$C$4:C372,'Urmărire punctaj'!C372)","v":"0"}]
[null,370,{"$f":"'Urmărire punctaj'!C373&COUNTIF('Urmărire punctaj'!$C$4:C373,'Urmărire punctaj'!C373)","v":"0"}]
[null,371,{"$f":"'Urmărire punctaj'!C374&COUNTIF('Urmărire punctaj'!$C$4:C374,'Urmărire punctaj'!C374)","v":"0"}]
[null,372,{"$f":"'Urmărire punctaj'!C375&COUNTIF('Urmărire punctaj'!$C$4:C375,'Urmărire punctaj'!C375)","v":"0"}]
[null,373,{"$f":"'Urmărire punctaj'!C376&COUNTIF('Urmărire punctaj'!$C$4:C376,'Urmărire punctaj'!C376)","v":"0"}]
[null,374,{"$f":"'Urmărire punctaj'!C377&COUNTIF('Urmărire punctaj'!$C$4:C377,'Urmărire punctaj'!C377)","v":"0"}]
[null,375,{"$f":"'Urmărire punctaj'!C378&COUNTIF('Urmărire punctaj'!$C$4:C378,'Urmărire punctaj'!C378)","v":"0"}]
[null,376,{"$f":"'Urmărire punctaj'!C379&COUNTIF('Urmărire punctaj'!$C$4:C379,'Urmărire punctaj'!C379)","v":"0"}]
[null,377,{"$f":"'Urmărire punctaj'!C380&COUNTIF('Urmărire punctaj'!$C$4:C380,'Urmărire punctaj'!C380)","v":"0"}]
[null,378,{"$f":"'Urmărire punctaj'!C381&COUNTIF('Urmărire punctaj'!$C$4:C381,'Urmărire punctaj'!C381)","v":"0"}]
[null,379,{"$f":"'Urmărire punctaj'!C382&COUNTIF('Urmărire punctaj'!$C$4:C382,'Urmărire punctaj'!C382)","v":"0"}]
[null,380,{"$f":"'Urmărire punctaj'!C383&COUNTIF('Urmărire punctaj'!$C$4:C383,'Urmărire punctaj'!C383)","v":"0"}]
[null,381,{"$f":"'Urmărire punctaj'!C384&COUNTIF('Urmărire punctaj'!$C$4:C384,'Urmărire punctaj'!C384)","v":"0"}]
[null,382,{"$f":"'Urmărire punctaj'!C385&COUNTIF('Urmărire punctaj'!$C$4:C385,'Urmărire punctaj'!C385)","v":"0"}]
[null,383,{"$f":"'Urmărire punctaj'!C386&COUNTIF('Urmărire punctaj'!$C$4:C386,'Urmărire punctaj'!C386)","v":"0"}]
[null,384,{"$f":"'Urmărire punctaj'!C387&COUNTIF('Urmărire punctaj'!$C$4:C387,'Urmărire punctaj'!C387)","v":"0"}]
[null,385,{"$f":"'Urmărire punctaj'!C388&COUNTIF('Urmărire punctaj'!$C$4:C388,'Urmărire punctaj'!C388)","v":"0"}]
[null,386,{"$f":"'Urmărire punctaj'!C389&COUNTIF('Urmărire punctaj'!$C$4:C389,'Urmărire punctaj'!C389)","v":"0"}]
[null,387,{"$f":"'Urmărire punctaj'!C390&COUNTIF('Urmărire punctaj'!$C$4:C390,'Urmărire punctaj'!C390)","v":"0"}]
[null,388,{"$f":"'Urmărire punctaj'!C391&COUNTIF('Urmărire punctaj'!$C$4:C391,'Urmărire punctaj'!C391)","v":"0"}]
[null,389,{"$f":"'Urmărire punctaj'!C392&COUNTIF('Urmărire punctaj'!$C$4:C392,'Urmărire punctaj'!C392)","v":"0"}]
[null,390,{"$f":"'Urmărire punctaj'!C393&COUNTIF('Urmărire punctaj'!$C$4:C393,'Urmărire punctaj'!C393)","v":"0"}]
[null,391,{"$f":"'Urmărire punctaj'!C394&COUNTIF('Urmărire punctaj'!$C$4:C394,'Urmărire punctaj'!C394)","v":"0"}]
[null,392,{"$f":"'Urmărire punctaj'!C395&COUNTIF('Urmărire punctaj'!$C$4:C395,'Urmărire punctaj'!C395)","v":"0"}]
[null,393,{"$f":"'Urmărire punctaj'!C396&COUNTIF('Urmărire punctaj'!$C$4:C396,'Urmărire punctaj'!C396)","v":"0"}]
[null,394,{"$f":"'Urmărire punctaj'!C397&COUNTIF('Urmărire punctaj'!$C$4:C397,'Urmărire punctaj'!C397)","v":"0"}]
[null,395,{"$f":"'Urmărire punctaj'!C398&COUNTIF('Urmărire punctaj'!$C$4:C398,'Urmărire punctaj'!C398)","v":"0"}]
[null,396,{"$f":"'Urmărire punctaj'!C399&COUNTIF('Urmărire punctaj'!$C$4:C399,'Urmărire punctaj'!C399)","v":"0"}]
[null,397,{"$f":"'Urmărire punctaj'!C400&COUNTIF('Urmărire punctaj'!$C$4:C400,'Urmărire punctaj'!C400)","v":"0"}]
[null,398,{"$f":"'Urmărire punctaj'!C401&COUNTIF('Urmărire punctaj'!$C$4:C401,'Urmărire punctaj'!C401)","v":"0"}]
[null,399,{"$f":"'Urmărire punctaj'!C402&COUNTIF('Urmărire punctaj'!$C$4:C402,'Urmărire punctaj'!C402)","v":"0"}]
[null,400,{"$f":"'Urmărire punctaj'!C403&COUNTIF('Urmărire punctaj'!$C$4:C403,'Urmărire punctaj'!C403)","v":"0"}]
[null,401,{"$f":"'Urmărire punctaj'!C404&COUNTIF('Urmărire punctaj'!$C$4:C404,'Urmărire punctaj'!C404)","v":"0"}]
[null,402,{"$f":"'Urmărire punctaj'!C405&COUNTIF('Urmărire punctaj'!$C$4:C405,'Urmărire punctaj'!C405)","v":"0"}]
[null,403,{"$f":"'Urmărire punctaj'!C406&COUNTIF('Urmărire punctaj'!$C$4:C406,'Urmărire punctaj'!C406)","v":"0"}]
[null,404,{"$f":"'Urmărire punctaj'!C407&COUNTIF('Urmărire punctaj'!$C$4:C407,'Urmărire punctaj'!C407)","v":"0"}]
[null,405,{"$f":"'Urmărire punctaj'!C408&COUNTIF('Urmărire punctaj'!$C$4:C408,'Urmărire punctaj'!C408)","v":"0"}]
[null,406,{"$f":"'Urmărire punctaj'!C409&COUNTIF('Urmărire punctaj'!$C$4:C409,'Urmărire punctaj'!C409)","v":"0"}]
[null,407,{"$f":"'Urmărire punctaj'!C410&COUNTIF('Urmărire punctaj'!$C$4:C410,'Urmărire punctaj'!C410)","v":"0"}]
[null,408,{"$f":"'Urmărire punctaj'!C411&COUNTIF('Urmărire punctaj'!$C$4:C411,'Urmărire punctaj'!C411)","v":"0"}]
[null,409,{"$f":"'Urmărire punctaj'!C412&COUNTIF('Urmărire punctaj'!$C$4:C412,'Urmărire punctaj'!C412)","v":"0"}]
[null,410,{"$f":"'Urmărire punctaj'!C413&COUNTIF('Urmărire punctaj'!$C$4:C413,'Urmărire punctaj'!C413)","v":"0"}]
[null,411,{"$f":"'Urmărire punctaj'!C414&COUNTIF('Urmărire punctaj'!$C$4:C414,'Urmărire punctaj'!C414)","v":"0"}]
[null,412,{"$f":"'Urmărire punctaj'!C415&COUNTIF('Urmărire punctaj'!$C$4:C415,'Urmărire punctaj'!C415)","v":"0"}]
[null,413,{"$f":"'Urmărire punctaj'!C416&COUNTIF('Urmărire punctaj'!$C$4:C416,'Urmărire punctaj'!C416)","v":"0"}]
[null,414,{"$f":"'Urmărire punctaj'!C417&COUNTIF('Urmărire punctaj'!$C$4:C417,'Urmărire punctaj'!C417)","v":"0"}]
[null,415,{"$f":"'Urmărire punctaj'!C418&COUNTIF('Urmărire punctaj'!$C$4:C418,'Urmărire punctaj'!C418)","v":"0"}]
[null,416,{"$f":"'Urmărire punctaj'!C419&COUNTIF('Urmărire punctaj'!$C$4:C419,'Urmărire punctaj'!C419)","v":"0"}]
[null,417,{"$f":"'Urmărire punctaj'!C420&COUNTIF('Urmărire punctaj'!$C$4:C420,'Urmărire punctaj'!C420)","v":"0"}]
[null,418,{"$f":"'Urmărire punctaj'!C421&COUNTIF('Urmărire punctaj'!$C$4:C421,'Urmărire punctaj'!C421)","v":"0"}]
[null,419,{"$f":"'Urmărire punctaj'!C422&COUNTIF('Urmărire punctaj'!$C$4:C422,'Urmărire punctaj'!C422)","v":"0"}]
[null,420,{"$f":"'Urmărire punctaj'!C423&COUNTIF('Urmărire punctaj'!$C$4:C423,'Urmărire punctaj'!C423)","v":"0"}]
[null,421,{"$f":"'Urmărire punctaj'!C424&COUNTIF('Urmărire punctaj'!$C$4:C424,'Urmărire punctaj'!C424)","v":"0"}]
[null,422,{"$f":"'Urmărire punctaj'!C425&COUNTIF('Urmărire punctaj'!$C$4:C425,'Urmărire punctaj'!C425)","v":"0"}]
[null,423,{"$f":"'Urmărire punctaj'!C426&COUNTIF('Urmărire punctaj'!$C$4:C426,'Urmărire punctaj'!C426)","v":"0"}]
[null,424,{"$f":"'Urmărire punctaj'!C427&COUNTIF('Urmărire punctaj'!$C$4:C427,'Urmărire punctaj'!C427)","v":"0"}]
[null,425,{"$f":"'Urmărire punctaj'!C428&COUNTIF('Urmărire punctaj'!$C$4:C428,'Urmărire punctaj'!C428)","v":"0"}]
[null,426,{"$f":"'Urmărire punctaj'!C429&COUNTIF('Urmărire punctaj'!$C$4:C429,'Urmărire punctaj'!C429)","v":"0"}]
[null,427,{"$f":"'Urmărire punctaj'!C430&COUNTIF('Urmărire punctaj'!$C$4:C430,'Urmărire punctaj'!C430)","v":"0"}]
[null,428,{"$f":"'Urmărire punctaj'!C431&COUNTIF('Urmărire punctaj'!$C$4:C431,'Urmărire punctaj'!C431)","v":"0"}]
[null,429,{"$f":"'Urmărire punctaj'!C432&COUNTIF('Urmărire punctaj'!$C$4:C432,'Urmărire punctaj'!C432)","v":"0"}]
[null,430,{"$f":"'Urmărire punctaj'!C433&COUNTIF('Urmărire punctaj'!$C$4:C433,'Urmărire punctaj'!C433)","v":"0"}]
[null,431,{"$f":"'Urmărire punctaj'!C434&COUNTIF('Urmărire punctaj'!$C$4:C434,'Urmărire punctaj'!C434)","v":"0"}]
[null,432,{"$f":"'Urmărire punctaj'!C435&COUNTIF('Urmărire punctaj'!$C$4:C435,'Urmărire punctaj'!C435)","v":"0"}]
[null,433,{"$f":"'Urmărire punctaj'!C436&COUNTIF('Urmărire punctaj'!$C$4:C436,'Urmărire punctaj'!C436)","v":"0"}]
[null,434,{"$f":"'Urmărire punctaj'!C437&COUNTIF('Urmărire punctaj'!$C$4:C437,'Urmărire punctaj'!C437)","v":"0"}]
[null,435,{"$f":"'Urmărire punctaj'!C438&COUNTIF('Urmărire punctaj'!$C$4:C438,'Urmărire punctaj'!C438)","v":"0"}]
[null,436,{"$f":"'Urmărire punctaj'!C439&COUNTIF('Urmărire punctaj'!$C$4:C439,'Urmărire punctaj'!C439)","v":"0"}]
[null,437,{"$f":"'Urmărire punctaj'!C440&COUNTIF('Urmărire punctaj'!$C$4:C440,'Urmărire punctaj'!C440)","v":"0"}]
[null,438,{"$f":"'Urmărire punctaj'!C441&COUNTIF('Urmărire punctaj'!$C$4:C441,'Urmărire punctaj'!C441)","v":"0"}]
[null,439,{"$f":"'Urmărire punctaj'!C442&COUNTIF('Urmărire punctaj'!$C$4:C442,'Urmărire punctaj'!C442)","v":"0"}]
[null,440,{"$f":"'Urmărire punctaj'!C443&COUNTIF('Urmărire punctaj'!$C$4:C443,'Urmărire punctaj'!C443)","v":"0"}]
[null,441,{"$f":"'Urmărire punctaj'!C444&COUNTIF('Urmărire punctaj'!$C$4:C444,'Urmărire punctaj'!C444)","v":"0"}]
[null,442,{"$f":"'Urmărire punctaj'!C445&COUNTIF('Urmărire punctaj'!$C$4:C445,'Urmărire punctaj'!C445)","v":"0"}]
[null,443,{"$f":"'Urmărire punctaj'!C446&COUNTIF('Urmărire punctaj'!$C$4:C446,'Urmărire punctaj'!C446)","v":"0"}]
[null,444,{"$f":"'Urmărire punctaj'!C447&COUNTIF('Urmărire punctaj'!$C$4:C447,'Urmărire punctaj'!C447)","v":"0"}]
[null,445,{"$f":"'Urmărire punctaj'!C448&COUNTIF('Urmărire punctaj'!$C$4:C448,'Urmărire punctaj'!C448)","v":"0"}]
[null,446,{"$f":"'Urmărire punctaj'!C449&COUNTIF('Urmărire punctaj'!$C$4:C449,'Urmărire punctaj'!C449)","v":"0"}]
[null,447,{"$f":"'Urmărire punctaj'!C450&COUNTIF('Urmărire punctaj'!$C$4:C450,'Urmărire punctaj'!C450)","v":"0"}]
[null,448,{"$f":"'Urmărire punctaj'!C451&COUNTIF('Urmărire punctaj'!$C$4:C451,'Urmărire punctaj'!C451)","v":"0"}]
[null,449,{"$f":"'Urmărire punctaj'!C452&COUNTIF('Urmărire punctaj'!$C$4:C452,'Urmărire punctaj'!C452)","v":"0"}]
[null,450,{"$f":"'Urmărire punctaj'!C453&COUNTIF('Urmărire punctaj'!$C$4:C453,'Urmărire punctaj'!C453)","v":"0"}]
[null,451,{"$f":"'Urmărire punctaj'!C454&COUNTIF('Urmărire punctaj'!$C$4:C454,'Urmărire punctaj'!C454)","v":"0"}]
[null,452,{"$f":"'Urmărire punctaj'!C455&COUNTIF('Urmărire punctaj'!$C$4:C455,'Urmărire punctaj'!C455)","v":"0"}]
[null,453,{"$f":"'Urmărire punctaj'!C456&COUNTIF('Urmărire punctaj'!$C$4:C456,'Urmărire punctaj'!C456)","v":"0"}]
[null,454,{"$f":"'Urmărire punctaj'!C457&COUNTIF('Urmărire punctaj'!$C$4:C457,'Urmărire punctaj'!C457)","v":"0"}]
[null,455,{"$f":"'Urmărire punctaj'!C458&COUNTIF('Urmărire punctaj'!$C$4:C458,'Urmărire punctaj'!C458)","v":"0"}]
[null,456,{"$f":"'Urmărire punctaj'!C459&COUNTIF('Urmărire punctaj'!$C$4:C459,'Urmărire punctaj'!C459)","v":"0"}]
[null,457,{"$f":"'Urmărire punctaj'!C460&COUNTIF('Urmărire punctaj'!$C$4:C460,'Urmărire punctaj'!C460)","v":"0"}]
[null,458,{"$f":"'Urmărire punctaj'!C461&COUNTIF('Urmărire punctaj'!$C$4:C461,'Urmărire punctaj'!C461)","v":"0"}]
[null,459,{"$f":"'Urmărire punctaj'!C462&COUNTIF('Urmărire punctaj'!$C$4:C462,'Urmărire punctaj'!C462)","v":"0"}]
[null,460,{"$f":"'Urmărire punctaj'!C463&COUNTIF('Urmărire punctaj'!$C$4:C463,'Urmărire punctaj'!C463)","v":"0"}]
[null,461,{"$f":"'Urmărire punctaj'!C464&COUNTIF('Urmărire punctaj'!$C$4:C464,'Urmărire punctaj'!C464)","v":"0"}]
[null,462,{"$f":"'Urmărire punctaj'!C465&COUNTIF('Urmărire punctaj'!$C$4:C465,'Urmărire punctaj'!C465)","v":"0"}]
[null,463,{"$f":"'Urmărire punctaj'!C466&COUNTIF('Urmărire punctaj'!$C$4:C466,'Urmărire punctaj'!C466)","v":"0"}]
[null,464,{"$f":"'Urmărire punctaj'!C467&COUNTIF('Urmărire punctaj'!$C$4:C467,'Urmărire punctaj'!C467)","v":"0"}]
[null,465,{"$f":"'Urmărire punctaj'!C468&COUNTIF('Urmărire punctaj'!$C$4:C468,'Urmărire punctaj'!C468)","v":"0"}]
[null,466,{"$f":"'Urmărire punctaj'!C469&COUNTIF('Urmărire punctaj'!$C$4:C469,'Urmărire punctaj'!C469)","v":"0"}]
[null,467,{"$f":"'Urmărire punctaj'!C470&COUNTIF('Urmărire punctaj'!$C$4:C470,'Urmărire punctaj'!C470)","v":"0"}]
[null,468,{"$f":"'Urmărire punctaj'!C471&COUNTIF('Urmărire punctaj'!$C$4:C471,'Urmărire punctaj'!C471)","v":"0"}]
[null,469,{"$f":"'Urmărire punctaj'!C472&COUNTIF('Urmărire punctaj'!$C$4:C472,'Urmărire punctaj'!C472)","v":"0"}]
[null,470,{"$f":"'Urmărire punctaj'!C473&COUNTIF('Urmărire punctaj'!$C$4:C473,'Urmărire punctaj'!C473)","v":"0"}]
[null,471,{"$f":"'Urmărire punctaj'!C474&COUNTIF('Urmărire punctaj'!$C$4:C474,'Urmărire punctaj'!C474)","v":"0"}]
[null,472,{"$f":"'Urmărire punctaj'!C475&COUNTIF('Urmărire punctaj'!$C$4:C475,'Urmărire punctaj'!C475)","v":"0"}]
[null,473,{"$f":"'Urmărire punctaj'!C476&COUNTIF('Urmărire punctaj'!$C$4:C476,'Urmărire punctaj'!C476)","v":"0"}]
[null,474,{"$f":"'Urmărire punctaj'!C477&COUNTIF('Urmărire punctaj'!$C$4:C477,'Urmărire punctaj'!C477)","v":"0"}]
[null,475,{"$f":"'Urmărire punctaj'!C478&COUNTIF('Urmărire punctaj'!$C$4:C478,'Urmărire punctaj'!C478)","v":"0"}]
[null,476,{"$f":"'Urmărire punctaj'!C479&COUNTIF('Urmărire punctaj'!$C$4:C479,'Urmărire punctaj'!C479)","v":"0"}]
[null,477,{"$f":"'Urmărire punctaj'!C480&COUNTIF('Urmărire punctaj'!$C$4:C480,'Urmărire punctaj'!C480)","v":"0"}]
[null,478,{"$f":"'Urmărire punctaj'!C481&COUNTIF('Urmărire punctaj'!$C$4:C481,'Urmărire punctaj'!C481)","v":"0"}]
[null,479,{"$f":"'Urmărire punctaj'!C482&COUNTIF('Urmărire punctaj'!$C$4:C482,'Urmărire punctaj'!C482)","v":"0"}]
[null,480,{"$f":"'Urmărire punctaj'!C483&COUNTIF('Urmărire punctaj'!$C$4:C483,'Urmărire punctaj'!C483)","v":"0"}]
[null,481,{"$f":"'Urmărire punctaj'!C484&COUNTIF('Urmărire punctaj'!$C$4:C484,'Urmărire punctaj'!C484)","v":"0"}]
[null,482,{"$f":"'Urmărire punctaj'!C485&COUNTIF('Urmărire punctaj'!$C$4:C485,'Urmărire punctaj'!C485)","v":"0"}]
[null,483,{"$f":"'Urmărire punctaj'!C486&COUNTIF('Urmărire punctaj'!$C$4:C486,'Urmărire punctaj'!C486)","v":"0"}]
[null,484,{"$f":"'Urmărire punctaj'!C487&COUNTIF('Urmărire punctaj'!$C$4:C487,'Urmărire punctaj'!C487)","v":"0"}]
[null,485,{"$f":"'Urmărire punctaj'!C488&COUNTIF('Urmărire punctaj'!$C$4:C488,'Urmărire punctaj'!C488)","v":"0"}]
[null,486,{"$f":"'Urmărire punctaj'!C489&COUNTIF('Urmărire punctaj'!$C$4:C489,'Urmărire punctaj'!C489)","v":"0"}]
[null,487,{"$f":"'Urmărire punctaj'!C490&COUNTIF('Urmărire punctaj'!$C$4:C490,'Urmărire punctaj'!C490)","v":"0"}]
[null,488,{"$f":"'Urmărire punctaj'!C491&COUNTIF('Urmărire punctaj'!$C$4:C491,'Urmărire punctaj'!C491)","v":"0"}]
[null,489,{"$f":"'Urmărire punctaj'!C492&COUNTIF('Urmărire punctaj'!$C$4:C492,'Urmărire punctaj'!C492)","v":"0"}]
[null,490,{"$f":"'Urmărire punctaj'!C493&COUNTIF('Urmărire punctaj'!$C$4:C493,'Urmărire punctaj'!C493)","v":"0"}]
[null,491,{"$f":"'Urmărire punctaj'!C494&COUNTIF('Urmărire punctaj'!$C$4:C494,'Urmărire punctaj'!C494)","v":"0"}]
[null,492,{"$f":"'Urmărire punctaj'!C495&COUNTIF('Urmărire punctaj'!$C$4:C495,'Urmărire punctaj'!C495)","v":"0"}]
[null,493,{"$f":"'Urmărire punctaj'!C496&COUNTIF('Urmărire punctaj'!$C$4:C496,'Urmărire punctaj'!C496)","v":"0"}]
[null,494,{"$f":"'Urmărire punctaj'!C497&COUNTIF('Urmărire punctaj'!$C$4:C497,'Urmărire punctaj'!C497)","v":"0"}]
[null,495,{"$f":"'Urmărire punctaj'!C498&COUNTIF('Urmărire punctaj'!$C$4:C498,'Urmărire punctaj'!C498)","v":"0"}]
[null,496,{"$f":"'Urmărire punctaj'!C499&COUNTIF('Urmărire punctaj'!$C$4:C499,'Urmărire punctaj'!C499)","v":"0"}]
[null,497,{"$f":"'Urmărire punctaj'!C500&COUNTIF('Urmărire punctaj'!$C$4:C500,'Urmărire punctaj'!C500)","v":"0"}]
[null,498,{"$f":"'Urmărire punctaj'!C501&COUNTIF('Urmărire punctaj'!$C$4:C501,'Urmărire punctaj'!C501)","v":"0"}]
[null,499,{"$f":"'Urmărire punctaj'!C502&COUNTIF('Urmărire punctaj'!$C$4:C502,'Urmărire punctaj'!C502)","v":"0"}]
[null,500,{"$f":"'Urmărire punctaj'!C503&COUNTIF('Urmărire punctaj'!$C$4:C503,'Urmărire punctaj'!C503)","v":"0"}]
[null,501,{"$f":"'Urmărire punctaj'!C504&COUNTIF('Urmărire punctaj'!$C$4:C504,'Urmărire punctaj'!C504)","v":"0"}]
[null,502,{"$f":"'Urmărire punctaj'!C505&COUNTIF('Urmărire punctaj'!$C$4:C505,'Urmărire punctaj'!C505)","v":"0"}]
[null,503,{"$f":"'Urmărire punctaj'!C506&COUNTIF('Urmărire punctaj'!$C$4:C506,'Urmărire punctaj'!C506)","v":"0"}]
[null,504,{"$f":"'Urmărire punctaj'!C507&COUNTIF('Urmărire punctaj'!$C$4:C507,'Urmărire punctaj'!C507)","v":"0"}]
[null,505,{"$f":"'Urmărire punctaj'!C508&COUNTIF('Urmărire punctaj'!$C$4:C508,'Urmărire punctaj'!C508)","v":"0"}]
[null,506,{"$f":"'Urmărire punctaj'!C509&COUNTIF('Urmărire punctaj'!$C$4:C509,'Urmărire punctaj'!C509)","v":"0"}]
[null,507,{"$f":"'Urmărire punctaj'!C510&COUNTIF('Urmărire punctaj'!$C$4:C510,'Urmărire punctaj'!C510)","v":"0"}]
[null,508,{"$f":"'Urmărire punctaj'!C511&COUNTIF('Urmărire punctaj'!$C$4:C511,'Urmărire punctaj'!C511)","v":"0"}]
[null,509,{"$f":"'Urmărire punctaj'!C512&COUNTIF('Urmărire punctaj'!$C$4:C512,'Urmărire punctaj'!C512)","v":"0"}]
[null,510,{"$f":"'Urmărire punctaj'!C513&COUNTIF('Urmărire punctaj'!$C$4:C513,'Urmărire punctaj'!C513)","v":"0"}]
[null,511,{"$f":"'Urmărire punctaj'!C514&COUNTIF('Urmărire punctaj'!$C$4:C514,'Urmărire punctaj'!C514)","v":"0"}]
[null,512,{"$f":"'Urmărire punctaj'!C515&COUNTIF('Urmărire punctaj'!$C$4:C515,'Urmărire punctaj'!C515)","v":"0"}]
[null,513,{"$f":"'Urmărire punctaj'!C516&COUNTIF('Urmărire punctaj'!$C$4:C516,'Urmărire punctaj'!C516)","v":"0"}]
[null,514,{"$f":"'Urmărire punctaj'!C517&COUNTIF('Urmărire punctaj'!$C$4:C517,'Urmărire punctaj'!C517)","v":"0"}]
[null,515,{"$f":"'Urmărire punctaj'!C518&COUNTIF('Urmărire punctaj'!$C$4:C518,'Urmărire punctaj'!C518)","v":"0"}]
[null,516,{"$f":"'Urmărire punctaj'!C519&COUNTIF('Urmărire punctaj'!$C$4:C519,'Urmărire punctaj'!C519)","v":"0"}]
[null,517,{"$f":"'Urmărire punctaj'!C520&COUNTIF('Urmărire punctaj'!$C$4:C520,'Urmărire punctaj'!C520)","v":"0"}]
[null,518,{"$f":"'Urmărire punctaj'!C521&COUNTIF('Urmărire punctaj'!$C$4:C521,'Urmărire punctaj'!C521)","v":"0"}]
[null,519,{"$f":"'Urmărire punctaj'!C522&COUNTIF('Urmărire punctaj'!$C$4:C522,'Urmărire punctaj'!C522)","v":"0"}]
[null,520,{"$f":"'Urmărire punctaj'!C523&COUNTIF('Urmărire punctaj'!$C$4:C523,'Urmărire punctaj'!C523)","v":"0"}]
[null,521,{"$f":"'Urmărire punctaj'!C524&COUNTIF('Urmărire punctaj'!$C$4:C524,'Urmărire punctaj'!C524)","v":"0"}]
[null,522,{"$f":"'Urmărire punctaj'!C525&COUNTIF('Urmărire punctaj'!$C$4:C525,'Urmărire punctaj'!C525)","v":"0"}]
[null,523,{"$f":"'Urmărire punctaj'!C526&COUNTIF('Urmărire punctaj'!$C$4:C526,'Urmărire punctaj'!C526)","v":"0"}]
[null,524,{"$f":"'Urmărire punctaj'!C527&COUNTIF('Urmărire punctaj'!$C$4:C527,'Urmărire punctaj'!C527)","v":"0"}]
[null,525,{"$f":"'Urmărire punctaj'!C528&COUNTIF('Urmărire punctaj'!$C$4:C528,'Urmărire punctaj'!C528)","v":"0"}]
[null,526,{"$f":"'Urmărire punctaj'!C529&COUNTIF('Urmărire punctaj'!$C$4:C529,'Urmărire punctaj'!C529)","v":"0"}]
[null,527,{"$f":"'Urmărire punctaj'!C530&COUNTIF('Urmărire punctaj'!$C$4:C530,'Urmărire punctaj'!C530)","v":"0"}]
[null,528,{"$f":"'Urmărire punctaj'!C531&COUNTIF('Urmărire punctaj'!$C$4:C531,'Urmărire punctaj'!C531)","v":"0"}]
[null,529,{"$f":"'Urmărire punctaj'!C532&COUNTIF('Urmărire punctaj'!$C$4:C532,'Urmărire punctaj'!C532)","v":"0"}]
[null,530,{"$f":"'Urmărire punctaj'!C533&COUNTIF('Urmărire punctaj'!$C$4:C533,'Urmărire punctaj'!C533)","v":"0"}]
[null,531,{"$f":"'Urmărire punctaj'!C534&COUNTIF('Urmărire punctaj'!$C$4:C534,'Urmărire punctaj'!C534)","v":"0"}]
[null,532,{"$f":"'Urmărire punctaj'!C535&COUNTIF('Urmărire punctaj'!$C$4:C535,'Urmărire punctaj'!C535)","v":"0"}]
[null,533,{"$f":"'Urmărire punctaj'!C536&COUNTIF('Urmărire punctaj'!$C$4:C536,'Urmărire punctaj'!C536)","v":"0"}]
[null,534,{"$f":"'Urmărire punctaj'!C537&COUNTIF('Urmărire punctaj'!$C$4:C537,'Urmărire punctaj'!C537)","v":"0"}]
[null,535,{"$f":"'Urmărire punctaj'!C538&COUNTIF('Urmărire punctaj'!$C$4:C538,'Urmărire punctaj'!C538)","v":"0"}]
[null,536,{"$f":"'Urmărire punctaj'!C539&COUNTIF('Urmărire punctaj'!$C$4:C539,'Urmărire punctaj'!C539)","v":"0"}]
[null,537,{"$f":"'Urmărire punctaj'!C540&COUNTIF('Urmărire punctaj'!$C$4:C540,'Urmărire punctaj'!C540)","v":"0"}]
[null,538,{"$f":"'Urmărire punctaj'!C541&COUNTIF('Urmărire punctaj'!$C$4:C541,'Urmărire punctaj'!C541)","v":"0"}]
[null,539,{"$f":"'Urmărire punctaj'!C542&COUNTIF('Urmărire punctaj'!$C$4:C542,'Urmărire punctaj'!C542)","v":"0"}]
[null,540,{"$f":"'Urmărire punctaj'!C543&COUNTIF('Urmărire punctaj'!$C$4:C543,'Urmărire punctaj'!C543)","v":"0"}]
[null,541,{"$f":"'Urmărire punctaj'!C544&COUNTIF('Urmărire punctaj'!$C$4:C544,'Urmărire punctaj'!C544)","v":"0"}]
[null,542,{"$f":"'Urmărire punctaj'!C545&COUNTIF('Urmărire punctaj'!$C$4:C545,'Urmărire punctaj'!C545)","v":"0"}]
[null,543,{"$f":"'Urmărire punctaj'!C546&COUNTIF('Urmărire punctaj'!$C$4:C546,'Urmărire punctaj'!C546)","v":"0"}]
[null,544,{"$f":"'Urmărire punctaj'!C547&COUNTIF('Urmărire punctaj'!$C$4:C547,'Urmărire punctaj'!C547)","v":"0"}]
[null,545,{"$f":"'Urmărire punctaj'!C548&COUNTIF('Urmărire punctaj'!$C$4:C548,'Urmărire punctaj'!C548)","v":"0"}]
[null,546,{"$f":"'Urmărire punctaj'!C549&COUNTIF('Urmărire punctaj'!$C$4:C549,'Urmărire punctaj'!C549)","v":"0"}]
[null,547,{"$f":"'Urmărire punctaj'!C550&COUNTIF('Urmărire punctaj'!$C$4:C550,'Urmărire punctaj'!C550)","v":"0"}]
[null,548,{"$f":"'Urmărire punctaj'!C551&COUNTIF('Urmărire punctaj'!$C$4:C551,'Urmărire punctaj'!C551)","v":"0"}]
[null,549,{"$f":"'Urmărire punctaj'!C552&COUNTIF('Urmărire punctaj'!$C$4:C552,'Urmărire punctaj'!C552)","v":"0"}]
[null,550,{"$f":"'Urmărire punctaj'!C553&COUNTIF('Urmărire punctaj'!$C$4:C553,'Urmărire punctaj'!C553)","v":"0"}]
[null,551,{"$f":"'Urmărire punctaj'!C554&COUNTIF('Urmărire punctaj'!$C$4:C554,'Urmărire punctaj'!C554)","v":"0"}]
[null,552,{"$f":"'Urmărire punctaj'!C555&COUNTIF('Urmărire punctaj'!$C$4:C555,'Urmărire punctaj'!C555)","v":"0"}]
[null,553,{"$f":"'Urmărire punctaj'!C556&COUNTIF('Urmărire punctaj'!$C$4:C556,'Urmărire punctaj'!C556)","v":"0"}]
[null,554,{"$f":"'Urmărire punctaj'!C557&COUNTIF('Urmărire punctaj'!$C$4:C557,'Urmărire punctaj'!C557)","v":"0"}]
[null,555,{"$f":"'Urmărire punctaj'!C558&COUNTIF('Urmărire punctaj'!$C$4:C558,'Urmărire punctaj'!C558)","v":"0"}]
[null,556,{"$f":"'Urmărire punctaj'!C559&COUNTIF('Urmărire punctaj'!$C$4:C559,'Urmărire punctaj'!C559)","v":"0"}]
[null,557,{"$f":"'Urmărire punctaj'!C560&COUNTIF('Urmărire punctaj'!$C$4:C560,'Urmărire punctaj'!C560)","v":"0"}]
[null,558,{"$f":"'Urmărire punctaj'!C561&COUNTIF('Urmărire punctaj'!$C$4:C561,'Urmărire punctaj'!C561)","v":"0"}]
[null,559,{"$f":"'Urmărire punctaj'!C562&COUNTIF('Urmărire punctaj'!$C$4:C562,'Urmărire punctaj'!C562)","v":"0"}]
[null,560,{"$f":"'Urmărire punctaj'!C563&COUNTIF('Urmărire punctaj'!$C$4:C563,'Urmărire punctaj'!C563)","v":"0"}]
[null,561,{"$f":"'Urmărire punctaj'!C564&COUNTIF('Urmărire punctaj'!$C$4:C564,'Urmărire punctaj'!C564)","v":"0"}]
[null,562,{"$f":"'Urmărire punctaj'!C565&COUNTIF('Urmărire punctaj'!$C$4:C565,'Urmărire punctaj'!C565)","v":"0"}]
[null,563,{"$f":"'Urmărire punctaj'!C566&COUNTIF('Urmărire punctaj'!$C$4:C566,'Urmărire punctaj'!C566)","v":"0"}]
[null,564,{"$f":"'Urmărire punctaj'!C567&COUNTIF('Urmărire punctaj'!$C$4:C567,'Urmărire punctaj'!C567)","v":"0"}]
[null,565,{"$f":"'Urmărire punctaj'!C568&COUNTIF('Urmărire punctaj'!$C$4:C568,'Urmărire punctaj'!C568)","v":"0"}]
[null,566,{"$f":"'Urmărire punctaj'!C569&COUNTIF('Urmărire punctaj'!$C$4:C569,'Urmărire punctaj'!C569)","v":"0"}]
[null,567,{"$f":"'Urmărire punctaj'!C570&COUNTIF('Urmărire punctaj'!$C$4:C570,'Urmărire punctaj'!C570)","v":"0"}]
[null,568,{"$f":"'Urmărire punctaj'!C571&COUNTIF('Urmărire punctaj'!$C$4:C571,'Urmărire punctaj'!C571)","v":"0"}]
[null,569,{"$f":"'Urmărire punctaj'!C572&COUNTIF('Urmărire punctaj'!$C$4:C572,'Urmărire punctaj'!C572)","v":"0"}]
[null,570,{"$f":"'Urmărire punctaj'!C573&COUNTIF('Urmărire punctaj'!$C$4:C573,'Urmărire punctaj'!C573)","v":"0"}]
[null,571,{"$f":"'Urmărire punctaj'!C574&COUNTIF('Urmărire punctaj'!$C$4:C574,'Urmărire punctaj'!C574)","v":"0"}]
[null,572,{"$f":"'Urmărire punctaj'!C575&COUNTIF('Urmărire punctaj'!$C$4:C575,'Urmărire punctaj'!C575)","v":"0"}]
[null,573,{"$f":"'Urmărire punctaj'!C576&COUNTIF('Urmărire punctaj'!$C$4:C576,'Urmărire punctaj'!C576)","v":"0"}]
[null,574,{"$f":"'Urmărire punctaj'!C577&COUNTIF('Urmărire punctaj'!$C$4:C577,'Urmărire punctaj'!C577)","v":"0"}]
[null,575,{"$f":"'Urmărire punctaj'!C578&COUNTIF('Urmărire punctaj'!$C$4:C578,'Urmărire punctaj'!C578)","v":"0"}]
[null,576,{"$f":"'Urmărire punctaj'!C579&COUNTIF('Urmărire punctaj'!$C$4:C579,'Urmărire punctaj'!C579)","v":"0"}]
[null,577,{"$f":"'Urmărire punctaj'!C580&COUNTIF('Urmărire punctaj'!$C$4:C580,'Urmărire punctaj'!C580)","v":"0"}]
[null,578,{"$f":"'Urmărire punctaj'!C581&COUNTIF('Urmărire punctaj'!$C$4:C581,'Urmărire punctaj'!C581)","v":"0"}]
[null,579,{"$f":"'Urmărire punctaj'!C582&COUNTIF('Urmărire punctaj'!$C$4:C582,'Urmărire punctaj'!C582)","v":"0"}]
[null,580,{"$f":"'Urmărire punctaj'!C583&COUNTIF('Urmărire punctaj'!$C$4:C583,'Urmărire punctaj'!C583)","v":"0"}]
[null,581,{"$f":"'Urmărire punctaj'!C584&COUNTIF('Urmărire punctaj'!$C$4:C584,'Urmărire punctaj'!C584)","v":"0"}]
[null,582,{"$f":"'Urmărire punctaj'!C585&COUNTIF('Urmărire punctaj'!$C$4:C585,'Urmărire punctaj'!C585)","v":"0"}]
[null,583,{"$f":"'Urmărire punctaj'!C586&COUNTIF('Urmărire punctaj'!$C$4:C586,'Urmărire punctaj'!C586)","v":"0"}]
[null,584,{"$f":"'Urmărire punctaj'!C587&COUNTIF('Urmărire punctaj'!$C$4:C587,'Urmărire punctaj'!C587)","v":"0"}]
[null,585,{"$f":"'Urmărire punctaj'!C588&COUNTIF('Urmărire punctaj'!$C$4:C588,'Urmărire punctaj'!C588)","v":"0"}]
[null,586,{"$f":"'Urmărire punctaj'!C589&COUNTIF('Urmărire punctaj'!$C$4:C589,'Urmărire punctaj'!C589)","v":"0"}]
[null,587,{"$f":"'Urmărire punctaj'!C590&COUNTIF('Urmărire punctaj'!$C$4:C590,'Urmărire punctaj'!C590)","v":"0"}]
[null,588,{"$f":"'Urmărire punctaj'!C591&COUNTIF('Urmărire punctaj'!$C$4:C591,'Urmărire punctaj'!C591)","v":"0"}]
[null,589,{"$f":"'Urmărire punctaj'!C592&COUNTIF('Urmărire punctaj'!$C$4:C592,'Urmărire punctaj'!C592)","v":"0"}]
[null,590,{"$f":"'Urmărire punctaj'!C593&COUNTIF('Urmărire punctaj'!$C$4:C593,'Urmărire punctaj'!C593)","v":"0"}]
[null,591,{"$f":"'Urmărire punctaj'!C594&COUNTIF('Urmărire punctaj'!$C$4:C594,'Urmărire punctaj'!C594)","v":"0"}]
[null,592,{"$f":"'Urmărire punctaj'!C595&COUNTIF('Urmărire punctaj'!$C$4:C595,'Urmărire punctaj'!C595)","v":"0"}]
[null,593,{"$f":"'Urmărire punctaj'!C596&COUNTIF('Urmărire punctaj'!$C$4:C596,'Urmărire punctaj'!C596)","v":"0"}]
[null,594,{"$f":"'Urmărire punctaj'!C597&COUNTIF('Urmărire punctaj'!$C$4:C597,'Urmărire punctaj'!C597)","v":"0"}]
[null,595,{"$f":"'Urmărire punctaj'!C598&COUNTIF('Urmărire punctaj'!$C$4:C598,'Urmărire punctaj'!C598)","v":"0"}]
[null,596,{"$f":"'Urmărire punctaj'!C599&COUNTIF('Urmărire punctaj'!$C$4:C599,'Urmărire punctaj'!C599)","v":"0"}]
[null,597,{"$f":"'Urmărire punctaj'!C600&COUNTIF('Urmărire punctaj'!$C$4:C600,'Urmărire punctaj'!C600)","v":"0"}]
[null,598,{"$f":"'Urmărire punctaj'!C601&COUNTIF('Urmărire punctaj'!$C$4:C601,'Urmărire punctaj'!C601)","v":"0"}]
[null,599,{"$f":"'Urmărire punctaj'!C602&COUNTIF('Urmărire punctaj'!$C$4:C602,'Urmărire punctaj'!C602)","v":"0"}]
[null,600,{"$f":"'Urmărire punctaj'!C603&COUNTIF('Urmărire punctaj'!$C$4:C603,'Urmărire punctaj'!C603)","v":"0"}]
[null,601,{"$f":"'Urmărire punctaj'!C604&COUNTIF('Urmărire punctaj'!$C$4:C604,'Urmărire punctaj'!C604)","v":"0"}]
[null,602,{"$f":"'Urmărire punctaj'!C605&COUNTIF('Urmărire punctaj'!$C$4:C605,'Urmărire punctaj'!C605)","v":"0"}]
[null,603,{"$f":"'Urmărire punctaj'!C606&COUNTIF('Urmărire punctaj'!$C$4:C606,'Urmărire punctaj'!C606)","v":"0"}]
[null,604,{"$f":"'Urmărire punctaj'!C607&COUNTIF('Urmărire punctaj'!$C$4:C607,'Urmărire punctaj'!C607)","v":"0"}]
[null,605,{"$f":"'Urmărire punctaj'!C608&COUNTIF('Urmărire punctaj'!$C$4:C608,'Urmărire punctaj'!C608)","v":"0"}]
[null,606,{"$f":"'Urmărire punctaj'!C609&COUNTIF('Urmărire punctaj'!$C$4:C609,'Urmărire punctaj'!C609)","v":"0"}]
[null,607,{"$f":"'Urmărire punctaj'!C610&COUNTIF('Urmărire punctaj'!$C$4:C610,'Urmărire punctaj'!C610)","v":"0"}]
[null,608,{"$f":"'Urmărire punctaj'!C611&COUNTIF('Urmărire punctaj'!$C$4:C611,'Urmărire punctaj'!C611)","v":"0"}]
[null,609,{"$f":"'Urmărire punctaj'!C612&COUNTIF('Urmărire punctaj'!$C$4:C612,'Urmărire punctaj'!C612)","v":"0"}]
[null,610,{"$f":"'Urmărire punctaj'!C613&COUNTIF('Urmărire punctaj'!$C$4:C613,'Urmărire punctaj'!C613)","v":"0"}]
[null,611,{"$f":"'Urmărire punctaj'!C614&COUNTIF('Urmărire punctaj'!$C$4:C614,'Urmărire punctaj'!C614)","v":"0"}]
[null,612,{"$f":"'Urmărire punctaj'!C615&COUNTIF('Urmărire punctaj'!$C$4:C615,'Urmărire punctaj'!C615)","v":"0"}]
[null,613,{"$f":"'Urmărire punctaj'!C616&COUNTIF('Urmărire punctaj'!$C$4:C616,'Urmărire punctaj'!C616)","v":"0"}]
[null,614,{"$f":"'Urmărire punctaj'!C617&COUNTIF('Urmărire punctaj'!$C$4:C617,'Urmărire punctaj'!C617)","v":"0"}]
[null,615,{"$f":"'Urmărire punctaj'!C618&COUNTIF('Urmărire punctaj'!$C$4:C618,'Urmărire punctaj'!C618)","v":"0"}]
[null,616,{"$f":"'Urmărire punctaj'!C619&COUNTIF('Urmărire punctaj'!$C$4:C619,'Urmărire punctaj'!C619)","v":"0"}]
[null,617,{"$f":"'Urmărire punctaj'!C620&COUNTIF('Urmărire punctaj'!$C$4:C620,'Urmărire punctaj'!C620)","v":"0"}]
[null,618,{"$f":"'Urmărire punctaj'!C621&COUNTIF('Urmărire punctaj'!$C$4:C621,'Urmărire punctaj'!C621)","v":"0"}]
[null,619,{"$f":"'Urmărire punctaj'!C622&COUNTIF('Urmărire punctaj'!$C$4:C622,'Urmărire punctaj'!C622)","v":"0"}]
[null,620,{"$f":"'Urmărire punctaj'!C623&COUNTIF('Urmărire punctaj'!$C$4:C623,'Urmărire punctaj'!C623)","v":"0"}]
[null,621,{"$f":"'Urmărire punctaj'!C624&COUNTIF('Urmărire punctaj'!$C$4:C624,'Urmărire punctaj'!C624)","v":"0"}]
[null,622,{"$f":"'Urmărire punctaj'!C625&COUNTIF('Urmărire punctaj'!$C$4:C625,'Urmărire punctaj'!C625)","v":"0"}]
[null,623,{"$f":"'Urmărire punctaj'!C626&COUNTIF('Urmărire punctaj'!$C$4:C626,'Urmărire punctaj'!C626)","v":"0"}]
[null,624,{"$f":"'Urmărire punctaj'!C627&COUNTIF('Urmărire punctaj'!$C$4:C627,'Urmărire punctaj'!C627)","v":"0"}]
[null,625,{"$f":"'Urmărire punctaj'!C628&COUNTIF('Urmărire punctaj'!$C$4:C628,'Urmărire punctaj'!C628)","v":"0"}]